{"text_format":"3","workbook":"xlsx","n_sheets":5,"sheets":["Matriz Calificación-Evaluación","INSTRUCTIVO","Matriz","Mapa Riesgo Inherente ","Mapa Riesgo Residual"],"not_rendered":{"charts":2,"images":5,"macros":1,"defined_names":5},"read":"whole","date_system":"1900"}

{"sheet":"Matriz Calificación-Evaluación","index":0,"n_rows":11,"n_cols":11,"rows_kept":11,"hidden":true,"merged":[[1,3,1,7]]}
[]
[{"$nulls":3},"Matriz de Calificación evaluación y respuesta a los Riesgos."]
[]
[{"$nulls":4},"Impacto"]
[null,"Probabilidad",null,"Insignificante","Menor","Moderado ","Mayor ","Catastrófico"]
[{"$nulls":3},1,2,3,4,5]
[null,"Raro",1,"B","B","M","A","A",null,"B","Zona de Riesgo Baja"]
[null,"Improbable",2,"B","B","M","A","E",null,"M","Zona de Riesgo Moderada"]
[null,"Posible ",3,"B","M","A","E","E",null,"A","Zona de Riesgo Alta"]
[null,"Probable",4,"M","A","A","E","E",null,"E","Zona de Riesgo Extrema"]
[null,"casi seguro",5,"A","A","E","E","E"]

{"sheet":"INSTRUCTIVO","index":1,"n_rows":74,"n_cols":12,"rows_kept":74,"merged":[[0,0,0,1],[0,2,0,16],[2,1,14,1],[2,2,3,7],[2,8,14,8],[2,9,14,9],[2,10,2,16],[3,0,14,0],[3,10,13,15],[4,2,13,7],[14,2,14,7],[17,1,28,1],[17,2,18,7],[17,8,28,8],[17,9,28,9],[17,10,17,16],[18,0,28,0],[18,10,18,15],[19,2,27,7],[19,11,19,16],[20,11,20,16],[21,11,21,16],[22,10,22,15],[23,10,23,15],[24,11,24,14],[25,11,25,14],[26,11,26,14],[28,2,28,7],[29,1,52,1],[29,8,52,8],[29,9,52,9],[29,10,30,16],[30,0,52,0],[30,2,51,7],[53,0,71,0],[53,2,54,16],[55,2,56,16],[57,2,58,16],[59,2,59,16],[60,2,62,16],[63,2,64,15],[65,2,66,15],[67,2,71,15],[70,1,71,1],[73,0,73,16],[94,2,94,7]]}
[null,null,"Area Sistema Integrado de Gestión de la Calidad\nlnstructivo metodología administración de riesgos"]
[]
["PASO 1"]
[{"$nulls":10},"La Universidad del Cauca en su compromiso vital y permanente con el desarrollo social, mediante la educación crítica, responsable y creativa, propone gestionar los riesgos institucionales, incluidos los riesgos de corrupción, definiendo medidas encaminadas a evitar, prevenir, mitigar, compartir o transferir aquellos de mayor probabilidad de ocurrencia y que generan un impacto considerable en el cumplimiento de los objetivos institucionales, realizando un seguimiento periódico a la efectividad de los controles, contando para ello con personal comprometido con el mejoramiento continuo de sus procesos y de la gestión Institucional. "]
[null,null,"POLITICA DE ADMINISTRACIÓN DEL RIESGO\n"]
{"$rows_empty":12}
["PASO 2"]
[{"$nulls":10},"2.1 Establecimiento del contexto"]
[null,null,"IDENTIFICACIÓN DEL RIESGO",{"$nulls":8},"Establecimiento del contexto interno"]
[{"$nulls":11},"Establecimiento del contexto externo"]
[{"$nulls":11},"Establecimiento del contexto delproceso"]
[]
[{"$nulls":10},"2.1 Identificación del riesgo"]
[{"$nulls":11},"Causas "]
[{"$nulls":11},"Riesgo"]
[{"$nulls":11},"Consecuencias o impactos"]
[]
[]
["ETAPA 3"]
["Valoración\ndel Riesgo",null,"VALORACIÓN  DEL RIESGO"]
{"$rows_empty":22}
["MARCO CONCEPTUAL",null,"Riesgo: Posibilidad de que ocurra un acontecimiento que impacte el alcance de los objetivos y resultados de la Institución "]
[]
[null,null,"Clase: Determine qué clase de riesgo es el identificado, de acuerdo a la siguiente clasificación: Estratégico, Imagen, Operacional, Financiero, Contable, Presupuestal, Cumplimiento, Tecnología, Información, Transparencia, Laborales, Ambiental, Derechos Humanos."]
[]
[null,null,"Descripción: se refiere a las características generales o las formas en que se observa o manifiesta el riesgo identificado."]
[]
[null,null,"Efecto: Corresponde a las consecuencias ocasionadas por el riesgo."]
[null,null,"Causas:  Es lo que origina el riesgo, son el punto de partida para el planteamiento de acciones preventivas. Las causas se deben establecer a partir de los factores internos y externos que se establecieron en el contexto. Para determinar las causas se podrá utilizar el diagrama causa - efecto."]
[]
[]
[null,null,"Una vez ubicados los riesgos en la matriz de priorización, se identifica si existen controles asociados, si son aplicados, están documentados y son efectivos, con el fin de determinar la posición del riesgo en la matriz de vulnerabilidad."]
[]
[null,null,"Control:  Es toda acción que tiende a prevenir o mitigar los riesgos, significa analizar el desempeño de los procesos, evidenciando posibles desviaciones frente al resultado esperado. Los controles proporcionan un modelo operacional de seguridad razonable en el logro de los objetivos. Tipos:"]
[]
[null,null,"Tipos de Control:\nDetectivo: se diseñan para identificar si resultados indeseables han ocurrido después de un acontecimiento.\nPreventivo: aquellos que actúan para eliminar las causas del riesgo, para prevenir su ocurrencia o materialización.\nCorrectivos: aquellos que permiten el restablecimiento de la actividad después de ser detectado un evento no deseable; también permiten la modificación de las acciones que propiciaron su ocurrencia."]
[]
[]
[]
[]
[]
["Algunas de las acciones tienden  a controlar la Posibilidad/Probabilidad y otras el impacto Son:"]

{"sheet":"Matriz","index":2,"n_rows":91,"n_cols":106,"rows_kept":91,"merged":[[0,0,3,2],[0,3,3,14],[4,0,4,2],[4,3,4,4],[4,6,4,14],[4,16,4,20],[5,0,5,6],[5,7,5,57],[6,0,6,3],[6,4,6,6],[6,7,6,13],[6,14,6,34],[6,42,6,47],[6,48,6,57],[7,7,7,8],[7,10,7,11],[7,12,7,13],[7,18,7,19],[7,20,7,21],[7,22,7,23],[7,24,7,25],[7,26,7,27],[7,28,7,29],[7,30,7,31],[7,35,7,36],[7,37,7,38],[7,40,7,41],[7,61,7,63],[8,0,16,0],[8,5,16,5],[8,7,16,7],[8,8,16,8],[8,9,16,9],[8,10,16,10],[8,11,16,11],[8,12,16,12],[8,13,16,13],[8,35,16,35],[8,36,16,36],[8,37,16,37],[8,38,16,38],[8,39,16,39],[8,40,16,40],[8,41,16,41],[8,48,16,48],[8,50,16,50],[8,53,16,53],[8,54,16,54],[8,55,16,55],[8,56,16,56],[8,57,16,57],[8,70,8,72],[8,74,8,77],[8,79,8,80],[8,93,9,93],[17,0,25,0],[17,5,25,5],[17,7,25,7],[17,8,25,8],[17,9,25,9],[17,10,25,10],[17,11,25,11],[17,12,25,12],[17,13,25,13],[17,35,25,35],[17,36,25,36],[17,37,25,37],[17,38,25,38],[17,39,25,39],[17,40,25,40],[17,41,25,41],[17,48,25,48],[17,50,25,50],[17,53,25,53],[17,54,25,54],[17,55,25,55],[17,56,25,56],[17,57,25,57],[26,0,34,0],[26,5,34,5],[26,7,34,7],[26,8,34,8],[26,9,34,9],[26,10,34,10],[26,11,34,11],[26,12,34,12],[26,13,34,13],[26,35,34,35],[26,36,34,36],[26,37,34,37],[26,38,34,38],[26,39,34,39],[26,40,34,40],[26,41,34,41],[26,48,34,48],[26,50,34,50],[26,53,34,53],[26,54,34,54],[26,55,34,55],[26,56,34,56],[26,57,34,57],[35,0,43,0],[35,5,43,5],[35,7,43,7],[35,8,43,8],[35,9,43,9],[35,10,43,10],[35,11,43,11],[35,12,43,12],[35,13,43,13],[35,35,43,35],[35,36,43,36],[35,37,43,37],[35,38,43,38],[35,39,43,39],[35,40,43,40],[35,41,43,41],[35,48,43,48],[35,50,43,50],[35,53,43,53],[35,54,43,54],[35,55,43,55],[35,56,43,56],[35,57,43,57],[44,0,52,0],[44,5,52,5],[44,7,52,7],[44,8,52,8],[44,9,52,9],[44,10,52,10],[44,11,52,11],[44,12,52,12],[44,13,52,13],[44,48,52,48],[44,50,52,50],[44,53,52,53],[44,54,52,54],[44,55,52,55],[44,56,52,56],[44,57,52,57],[53,0,61,0],[53,5,61,5],[53,7,61,7],[53,8,61,8],[53,9,61,9],[53,10,61,10],[53,11,61,11],[53,12,61,12],[53,13,61,13],[53,48,61,48],[53,50,61,50],[53,53,61,53],[53,54,61,54],[53,55,61,55],[53,56,61,56],[53,57,61,57],[62,2,62,5],[62,6,62,47],[63,2,63,5],[63,6,63,47],[64,2,64,5],[64,6,64,47],[84,2,84,3],[84,5,84,6]]}
[{"$nulls":3},"Centro de Gestión de la Calidad y la Acreditación Institucional\nAdministración del riesgo y autovaloración del control"]
[]
[]
[]
["PROCESO:",null,null,"Gestión de la Calidad",null,"OBJETIVO","Mantener la implementación del Sistema de Gestión de la Calidad de la Universidad del Cauca, articulando y apoyando los procesos universitarios para la mejora continua",{"$nulls":8},"ALCANCE","Inicia desde la creación y adopción de los documentos requeridos para el Sistema de Gestión de Calidad y termina con la implementación de acciones correctivas y preventivas y de mejora que conlleven al mantenimiento del mismo"]
["IDENTIFICACION DEL RIESGO",{"$nulls":6},"VALORACION DEL RIESGO"]
["ANALISIS CONTEXTO",{"$nulls":3},"IDENTIFICACION DEL RIESGO",null,null,"ANALISIS DEL RIESGO",{"$nulls":6},"VALORACIÓN/EVALUACION DEL RIESGO",{"$nulls":27},"MONITOREO Y REVISION",{"$nulls":5},"RIESGO RESIDUAL"]
["ITEM","N°","TIPO","CLASIFICACION","CAUSAS","RIESGO","CONSECUENCIAS","PROBABILIDAD",null,null,"IMPACTO",null,"NIVEL DE RIESGO","CONTEO NIVEL DE RIESGO","TIPO DE CONTROL","CONTROL ESTABLECIDO\n","FRECUENCIA DEL CONTROL","El control previene la materialización del riesgo (afecta probabilidad) o permite enfrentar la situación en caso de materialización (afecta impacto)?","¿Existen manuales, instructivos o procedimientos para el manejo del control?",null,"¿Está (n) definido (s) el (los) responsable (s) de la ejecución del control y del seguimiento?",null,"¿El control es automático?",null,"¿El control es manual?",null,"¿La frecuencia de ejecución del control y seguimiento es adecuada?",null,"¿Se cuenta con evidencias de la ejecución y seguimiento del control?",null,"¿En el tiempo que lleva el control  ha demostrado ser efectiva?",null,"TOTAL","Efectos en la  Probabilidad/Impacto","Valor del Impacto","PROBABILIDAD RESIDUAL",null,"IMPACTO RESIDUAL",null,null,"NIVEL DE RIESGO","CONTEO NIVEL DE RIESGO","OBSERVACIONES A LOS CONTROLES","ACCIONES","RESPONSABLE","FECHA INICIO","FECHA TERMINACIÓN","REGISTROS","PROBABILIDAD","PROBABILIDAD AJUSTADA","IMPACTO","IMPACTO AJUSTADO","Nuevo nivel de Desplazamiento en Probabilidad/Impacto","NUMERO TOTAL DE DESPLAZAMIENTOS POR PROBABILIDAD","NUMERO TOTAL DE DESPLAZAMIENTOS POR IMPACTO","PROBABILIDAD CON DEZPLAZAMIENTOS",null,"IMPACTO CON DESPLAZAMIENTOS",{"$nulls":3},"Contexto"]
["R1",1,"Factor_Interno","Personal","Incumplimiento en procedimientos y parametros establecidos desde el proceso de calidad ","Utilización de documentos obsoletos por parte de los procesos unviersitarios","Realización de actividades no ajustadas a la realidad Institucional",4,{"$f":"IF(H9=5,\"Mas de una vez al año\",IF(H9=4,\"Al menos una vez en el ultimo año\",IF(H9=3,\"Al menos una vez en los ultimos 2 años\",IF(H9=2,\"Al menos una vez en los ultimos 5 años\",\"No se ha presentado en los ultimos 5 años\"))))","v":"Al menos una vez en el ultimo año"},{"$f":"CONCATENATE(H$9,K$9)","v":"43"},3,{"$f":"IF(K9=5,\"Catastrófico\",IF(K9=4,\"Mayor\",IF(K9=3,\"Moderado\",IF(K9=2,\"Menos\",IF(K9=1,\"Insignificante\",\"Digite Valor entre 1 y 5\")))))","v":"Moderado"},{"$f":"IF(L9=\"Digite Valor entre 1 y 5\",\"\",IF(COUNTIF(CE$10:CE$17,CONCATENATE(H9,K9)),CE$9,IF(COUNTIF(CF$10:CF$17,CONCATENATE(H9,K9)),CF$9,IF(COUNTIF(CG$10:CG$13,CONCATENATE(H9,K9)),CG$9,CH$9))))","v":"Zona de Riesgo Alta"},{"$f":"IF(M9=CE$9,\"E\",IF(M9=CF$9,\"A\",IF(M9=CG$9,\"M\",IF(M9=CH$9,\"B\",\"\"))))","v":"A"},"Control Preventivo","Procedimiento que define los parametros para la elaboración y control de documentos dentro del sistema de calidad","A Solicitud","Afecta la Probabilidad","Si",{"$f":"IF(S9=\"Si\",15,0)","v":15},"Si",{"$f":"IF(U9=\"Si\",5,0)","v":5},"No",{"$f":"IF(W9=\"Si\",15,0)","v":0},"Si",{"$f":"IF(Y9=\"Si\",10,0)","v":10},"Si",{"$f":"IF(AA9=\"Si\",15,0)","v":15},"Si",{"$f":"IF(AC9=\"Si\",10,0)","v":10},"Si",{"$f":"IF(AE9=\"Si\",30,0)","v":30},{"$f":"T$9+V$9+X$9+Z$9+AB$9+AD$9+AF$9","v":85},{"$f":"IF(R9=\"\",\"\",IF(R9=\"Afecta la Probabilidad\",IF(AND(AG9>=0,AG9<=50),\"No disminuye la Probabilidad\",IF(AND(AG9>50,AG9<=75),\"Disminuye la Probabilidad en 1\",IF(AND(AG9>75,AG9<=100),\"Disminuye la Probabilidad en 2\",\"\"))),IF(AND(AG9>=0,AG9<=50),\"No disminuye el Impacto\",IF(AND(AG9>50,AG9<=75),\"Disminuye el Impacto en 1\",IF(AND(AG9>75,AG9<=100),\"Disminuye el Impacto en 2\",\"\")))))","v":"Disminuye la Probabilidad en 2"},{"$f":"IF(AG9<=50,0,IF(AND(AG9>50,AG9<=75),1,IF(AND(AG9>75,AG9<=100),2,\"\")))","v":2},{"$f":"BD9","v":1},{"$f":"IF(AJ9=5,\"Mas de una vez al año\",IF(AJ9=4,\"Al menos una vez en el ultimo año\",IF(AJ9=3,\"Al menos una vez en los ultimos 2 años\",IF(AJ9=2,\"Al menos una vez en los ultimos 5 años\",\"No se ha presentado en los ultimos 5 años\"))))","v":"No se ha presentado en los ultimos 5 años"},{"$f":"BF9","v":3},{"$f":"IF(AL9=5,\"Catastrófico - Tendría desastrosas consecuencias o efectos sobre la institución\",IF(AL9=4,\"Mayor - Tendría altas consecuencias o efectos sobre la institución\",IF(AL9=3,\"Moderado - Tendría medianas consecuencias o efectos sobre la institución\",IF(AL9=2,\"Menos - Tendría bajo impacto o efecto sobre la institución\",IF(AL9=1,\"Insignificante - tendría consecuencias o efectos mínimos en la institución\",\"Digite Valor entre 1 y 5\")))))","v":"Moderado - Tendría medianas consecuencias o efectos sobre la institución"},{"$f":"CONCATENATE(AJ9,AL9)","v":"13"},{"$f":"IF(COUNTIF($CE$10:$CE$17,AN9),$CE$9,IF(COUNTIF($CF$10:$CF$17,AN9),$CF$9,IF(COUNTIF($CG$10:$CG$13,AN9),$CG$9,IF(COUNTIF($CH$10:$CH$14,AN9),$CH$9,\"\"))))","v":"Zona de Riesgo Moderada"},{"$f":"IF(AO9=CE9,\"E\",IF(AO9=CF9,\"A\",IF(AO9=CG9,\"M\",IF(AO9=CH9,\"B\",\"\"))))","v":"M"},null,"Divulgar y socializar a todos los responsables de proceso el procedimiento  \"Elaboración y control de documentos\"","Director Centro\nProfesional Universitario-Calidad\nTénico Administrativo -Calidad","2016-01-01","2016-12-01","Correos enviados ( físicos y electronicos)\nDocumento publicado en la página Web Lvmen",{"$f":"H9","v":4},{"$f":"IF(R9=\"Afecta la Probabilidad\",AW9-(AW9-AI9),\"No aplica\")","v":2},{"$f":"K9","v":3},{"$f":"IF(R9=\"Afecta el Impacto\",AY9-(AY9-AI9),\"No aplica\")","v":"No aplica"},{"$f":"IF(Matriz!R9=\"Afecta el Impacto\",CONCATENATE(AW9,AZ9),CONCATENATE(AX9,AY9))","v":"23"},{"$f":"IF(R9=\"\",\"\",SUMIF(R9:R17,\"Afecta la Probabilidad\",AX9:AX17))","v":4},{"$f":"IF(R9=\"\",\"\",SUMIF(R9:R17,\"Afecta el Impacto\",AZ9:AZ17))","v":0},{"$f":"IF(BB9=\"\",\"\",IF(H9-BB9<=0,1,H9-BB9))","v":1},{"$f":"CONCATENATE(BD9,BF9)","v":"13"},{"$f":"IF(K9=\"\",\"\",IF(K9-BC9<0,1,K9-BC9))","v":3},null,"Factor",null,"Factor Interno","Factor Externo","Diseño del proceso",{"$nulls":6},"Contexto",{"$nulls":3},"Tabla de Probabilidad",{"$nulls":4},"Impacto",null,null,"Zona de Riesgo Extrema","Zona de Riesgo Alta","Zona de Riesgo Moderada","Zona de Riesgo Baja",null,"FRECUENCIA DEL CONTROL",{"$nulls":5},"RANGOS DE CALIFICACIÓN DE LOS CONTROLES ","DEPENDIENDO SI EL CONTROL AFECTA PROBABILIDAD O IMPACTO DESPLAZA EN LA MATRIZ DE EVALUACIÓN DEL RIESGO ASÍ: ",null,null,"TIPO DE CONTROL",null,"Controles de Gestión","Controles Operativos","Controles Legales",null,null,"TIPO DE CONTROL","DESCRIPCIÓN TIPO DE CONTROL"]
[null,{"$f":"B9+1","v":2},"Factor_del_Proceso","Responsables de proceso","Escaso liderazgo y participación del Responsablede proceso",null,"Entrega de información errada",{"$nulls":7},"Control Preventivo","Documentos vigentes y aprobados  en formato PDF publicados en la Web lvmen ","A Solicitud","Afecta la Probabilidad","Si",15,"Si",5,"No",0,"Si",10,"Si",15,"Si",10,"Si",{"$f":"IF(AE10=\"Si\",30,0)","v":30},{"$f":"T$10+V$10+X$10+Z$10+AB$10+AD$10+AF$10","v":85},{"$f":"IF(R10=\"\",\"\",IF(R10=\"Afecta la Probabilidad\",IF(AND(AG10>=0,AG10<=50),\"No disminuye la Probabilidad\",IF(AND(AG10>50,AG10<=75),\"Disminuye la Probabilidad en 1\",IF(AND(AG10>75,AG10<=100),\"Disminuye la Probabilidad en 2\",\"\"))),IF(AND(AG10>=0,AG10<=50),\"No disminuye el Impacto\",IF(AND(AG10>50,AG10<=75),\"Disminuye el Impacto en 1\",IF(AND(AG10>75,AG10<=100),\"Disminuye el Impacto en 2\",\"\")))))","v":"Disminuye la Probabilidad en 2"},{"$f":"IF(AG10<=50,0,IF(AND(AG10>50,AG10<=75),1,IF(AND(AG10>75,AG10<=100),2,\"\")))","v":2},{"$nulls":8},"Realizar seguimientos a través de auditorias internas a cada proceso/subproceso para evaluar el uso de los documentos en su última versión","Director Centro\nProfesional Universitario-Calidad\nTénico Administrativo -Calidad","2016-01-01","2016-12-01","Informe de Auditoria interna de calidad",null,2,null,"No aplica",{"$f":"IF(Matriz!R10=\"Afecta el Impacto\",CONCATENATE(AW10,AZ10),CONCATENATE(AX10,AY10))","v":"2"},{"$nulls":6},"Factor_Interno",null,"Infraestructura","Económicos","Interacciones con otros procesos",{"$nulls":6},"Externo","Interno","Del Proceso",null,"Nivel","Descriptor","Descripción","Frecuencia",null,"Catastrófico",5,null,25,14,13,11,null,"Mensual",null,"Afecta el Impacto",null,"Si",null,null,"En Probabilidad Avanza hacia abajo En Impacto Avanza hacia la izquierda CUADRANTES A DISMINUIR",null,null,"Controles_de_Gestion",null,"Politicas Claras Aplicadas","Conciliaciones","Normas Claras y Aplicadas",null,null,"Control Preventivo"]
[null,3,"Factor_Interno","Tecnología","Fallas en la plataforma web lvmen",null,"Presentación de Quejas y reclamos ",{"$nulls":12},0,null,0,null,0,null,0,null,0,null,0,null,0,{"$f":"T$11+V$11+X$11+Z$11+AB$11+AD$11+AF$11","v":0},{"$f":"IF(R11=\"\",\"\",IF(R11=\"Afecta la Probabilidad\",IF(AND(AG11>=0,AG11<=50),\"No disminuye la Probabilidad\",IF(AND(AG11>50,AG11<=75),\"Disminuye la Probabilidad en 1\",IF(AND(AG11>75,AG11<=100),\"Disminuye la Probabilidad en 2\",\"\"))),IF(AND(AG11>=0,AG11<=50),\"No disminuye el Impacto\",IF(AND(AG11>50,AG11<=75),\"Disminuye el Impacto en 1\",IF(AND(AG11>75,AG11<=100),\"Disminuye el Impacto en 2\",\"\")))))","v":""},0,{"$nulls":8},"Solicitar desarrollo audivisual para el manejo de la plataforma lvmen","Director Centro\nProfesional Especializado\nComunicaciones","2016-01-01","2016-12-01","Registros de su aplicación y del desarrollo",null,"No aplica",null,"No aplica",{"$f":"IF(Matriz!R11=\"Afecta el Impacto\",CONCATENATE(AW11,AZ11),CONCATENATE(AX11,AY11))","v":"No aplica"},{"$nulls":6},"Factor_Externo",null,"Personal","Medioambientales","Transversalidad",{"$nulls":6},"Económicos","Financieros","Diseño del proceso",null,5,"Casi seguro","Se espera que el evento ocurra en la mayoria de las veces","Más de 1 vez al año.",null,"Mayor ",4,null,35,15,23,12,null,"Bimensual",null,"Afecta la Probabilidad",null,"No",null,"Entre 0-50",0,null,null,"Controles_Operativos",null,"Seguimiento al plan Estrategico y Operativo","Consecutivos","Control de Terminos",null,null,"Control Correctivo"]
[null,4,"Factor_Interno","Personal","Desconocimiento del uso adecuado de la plataforma lvmen",{"$nulls":14},0,null,0,null,0,null,0,null,0,null,0,null,0,{"$f":"T$12+V$12+X$12+Z$12+AB$12+AD$12+AF$12","v":0},{"$f":"IF(R12=\"\",\"\",IF(R12=\"Afecta la Probabilidad\",IF(AND(AG12>=0,AG12<=50),\"No disminuye la Probabilidad\",IF(AND(AG12>50,AG12<=75),\"Disminuye la Probabilidad en 1\",IF(AND(AG12>75,AG12<=100),\"Disminuye la Probabilidad en 2\",\"\"))),IF(AND(AG12>=0,AG12<=50),\"No disminuye el Impacto\",IF(AND(AG12>50,AG12<=75),\"Disminuye el Impacto en 1\",IF(AND(AG12>75,AG12<=100),\"Disminuye el Impacto en 2\",\"\")))))","v":""},0,{"$nulls":14},"No aplica",null,"No aplica",{"$f":"IF(Matriz!R12=\"Afecta el Impacto\",CONCATENATE(AW12,AZ12),CONCATENATE(AX12,AY12))","v":"No aplica"},{"$nulls":6},"Factor_del_Proceso",null,"Procesos ","Políticos","Procedimientos asociados",{"$nulls":6},"Politicos","Personal","Interacciones con otros procesos",null,4,"Probable","Es varaible que el evento ocurra en la mayoria de las circunstancias","Al menos de 1 vez en el último año",null,"Moderado",3,null,45,24,32,21,null,"Trimestral",{"$nulls":5},"Entre 51-75",1,null,null,"Controles_Legales",null,"Indicadors de Gestión","VerificacIón de Firmas",{"$nulls":3},"Control Detectivo"]
[null,5,{"$nulls":17},0,null,0,null,0,null,0,null,0,null,0,null,0,{"$f":"T$13+V$13+X$13+Z$13+AB$13+AD$13+AF$13","v":0},"",0,{"$nulls":14},"No aplica",null,"No aplica",{"$f":"IF(Matriz!R13=\"Afecta el Impacto\",CONCATENATE(AW13,AZ13),CONCATENATE(AX13,AY13))","v":"No aplica"},{"$nulls":8},"Tecnología","Sociales","Responsables de proceso",{"$nulls":6},"Sociales","Procesos","Transversalidad",null,3,"Posible","El evento podrá ocurrir en algun momento","Al menos de 1 vez en los últimos 2 años",null,"Menos ",2,null,55,33,41,22,null,"Semestral",{"$nulls":5},"Entre 76-100",2,{"$nulls":4},"Seguimiento al cronograma","Lista de Chequeo"]
[null,6,{"$nulls":17},0,null,0,null,0,null,0,null,0,null,0,null,0,{"$f":"T$14+V$14+X$14+Z$14+AB$14+AD$14+AF$14","v":0},"",0,{"$nulls":14},"No aplica",null,"No aplica",{"$nulls":10},"Tecnológicos","Comunicación entre procesos",{"$nulls":6},"Tecnológicos","Tecnología","Procedimientos asociados",null,2,"Improbable","El evento puede ocurrir en algun momento","Al menos de 1 vez en los últimos 5 años",null,"Insignificante",1,null,34,42,null,31,null,"Anual",{"$nulls":11},"Informes de Gestión","Registro Controlado"]
[null,7,{"$nulls":17},0,null,0,null,0,null,0,null,0,null,0,null,0,{"$f":"T$15+V$15+X$15+Z$15+AB$15+AD$15+AF$15","v":0},"",0,{"$nulls":14},"No aplica",null,"No aplica",{"$nulls":18},"Medioambientales","Estratégicos","Responsables de proceso",null,1,"Rara Vez","El evento puede ocurrir solo en circunstancias excepcionales\n ( poco comunes o anormales)","No se ha presentado en los últimos 5 años",{"$nulls":4},44,43,{"$nulls":3},"A Solicitud",{"$nulls":12},"Segregación de Funciones"]
[null,8,{"$nulls":17},0,null,0,null,0,null,0,null,0,null,0,null,0,{"$f":"T$16+V$16+X$16+Z$16+AB$16+AD$16+AF$16","v":0},"",0,{"$nulls":14},"No aplica",null,"No aplica",{"$nulls":18},"Comunicación externa","Comunicación interna","Comunicación entre procesos",{"$nulls":9},54,51,{"$nulls":3},"Continuo",{"$nulls":12},"Niveles de Autorización"]
[null,9,{"$nulls":17},0,null,0,null,0,null,0,null,0,null,0,null,0,{"$f":"T$17+V$17+X$17+Z$17+AB$17+AD$17+AF$17","v":0},"",0,{"$nulls":14},"No aplica",null,"No aplica",{"$f":"IF(Matriz!R17=\"Afecta el Impacto\",CONCATENATE(AW17,AZ17),CONCATENATE(AX17,AY17))","v":"No aplica"},{"$nulls":29},53,52,{"$nulls":16},"Custodia Apropiada"]
["R2",1,"Factor_Interno","Personal","Indicadores no actualizados","Análisis de la gestión de los procesos basada en mediciones erroneas de indicadores","Toma de decisiones basada en información erronea",2,{"$f":"IF(H18=5,\"Mas de una vez al año\",IF(H18=4,\"Al menos una vez en el ultimo año\",IF(H18=3,\"Al menos una vez en los ultimos 2 años\",IF(H18=2,\"Al menos una vez en los ultimos 5 años\",\"No se ha presentado en los ultimos 5 años\"))))","v":"Al menos una vez en los ultimos 5 años"},{"$f":"CONCATENATE(H$18,K$18)","v":"24"},4,{"$f":"IF(K18=5,\"Catastrófico\",IF(K18=4,\"Mayor\",IF(K18=3,\"Moderado\",IF(K18=2,\"Menos\",IF(K18=1,\"Insignificante\",\"Digite Valor entre 1 y 5\")))))","v":"Mayor"},{"$f":"IF(L18=\"Digite Valor entre 1 y 5\",\"\",IF(COUNTIF(CE$10:CE$17,CONCATENATE(H18,K18)),CE$9,IF(COUNTIF(CF$10:CF$17,CONCATENATE(H18,K18)),CF$9,IF(COUNTIF(CG$10:CG$13,CONCATENATE(H18,K18)),CG$9,CH$9))))","v":"Zona de Riesgo Alta"},{"$f":"IF(M18=CE$9,\"E\",IF(M18=CF$9,\"A\",IF(M18=CG$9,\"M\",IF(M18=CH$9,\"B\",\"\"))))","v":"A"},"Control Preventivo","Acompañamiento en el diseño de  indicadores","A Solicitud","Afecta la Probabilidad","Si",15,"Si",5,"No",0,"Si",10,"Si",15,"Si",10,"Si",30,{"$f":"T$18+V$18+X$18+Z$18+AB$18+AD$18+AF$18","v":85},{"$f":"IF(R18=\"\",\"\",IF(R18=\"Afecta la Probabilidad\",IF(AND(AG18>=0,AG18<=50),\"No disminuye la Probabilidad\",IF(AND(AG18>50,AG18<=75),\"Disminuye la Probabilidad en 1\",IF(AND(AG18>75,AG18<=100),\"Disminuye la Probabilidad en 2\",\"\"))),IF(AND(AG18>=0,AG18<=50),\"No disminuye el Impacto\",IF(AND(AG18>50,AG18<=75),\"Disminuye el Impacto en 1\",IF(AND(AG18>75,AG18<=100),\"Disminuye el Impacto en 2\",\"\")))))","v":"Disminuye la Probabilidad en 2"},2,{"$f":"BD18","v":1},{"$f":"IF(AJ18=5,\"Mas de una vez al año\",IF(AJ18=4,\"Al menos una vez en el ultimo año\",IF(AJ18=3,\"Al menos una vez en los ultimos 2 años\",IF(AJ18=2,\"Al menos una vez en los ultimos 5 años\",\"No se ha presentado en los ultimos 5 años\"))))","v":"No se ha presentado en los ultimos 5 años"},{"$f":"BF18","v":4},{"$f":"IF(AL18=5,\"Catastrófico - Tendría desastrosas consecuencias o efectos sobre la institución\",IF(AL18=4,\"Mayor - Tendría altas consecuencias o efectos sobre la institución\",IF(AL18=3,\"Moderado - Tendría medianas consecuencias o efectos sobre la institución\",IF(AL18=2,\"Menos - Tendría bajo impacto o efecto sobre la institución\",IF(AL18=1,\"Insignificante - tendría consecuencias o efectos mínimos en la institución\",\"Digite Valor entre 1 y 5\")))))","v":"Mayor - Tendría altas consecuencias o efectos sobre la institución"},{"$f":"CONCATENATE(AJ18,AL18)","v":"14"},{"$f":"IF(COUNTIF($CE$10:$CE$17,AN18),$CE$9,IF(COUNTIF($CF$10:$CF$17,AN18),$CF$9,IF(COUNTIF($CG$10:$CG$13,AN18),$CG$9,IF(COUNTIF($CH$10:$CH$14,AN18),$CH$9,\"\"))))","v":"Zona de Riesgo Alta"},{"$f":"IF(AO18=CE9,\"E\",IF(AO18=CF9,\"A\",IF(AO18=CG9,\"M\",IF(AO18=CH9,\"B\",\"\"))))","v":"A"},null,"Revisión de los datos entregados por los procesos y subprocesos para la construcción de los indicadores","Jefe \nOficina de Planeación y Desarrollo Institucional","2016-01-01","2016-12-01",null,{"$f":"H18","v":2},2,{"$f":"K18","v":4},"No aplica",{"$f":"IF(Matriz!R18=\"Afecta el Impacto\",CONCATENATE(AW18,AZ18),CONCATENATE(AX18,AY18))","v":"24"},{"$f":"IF(R18=\"\",\"\",SUMIF(R18:R26,\"Afecta la Probabilidad\",AX18:AX26))","v":3},{"$f":"IF(R18=\"\",\"\",SUMIF(R18:R26,\"Afecta el Impacto\",AZ18:AZ26))","v":0},{"$f":"IF(BB18=\"\",\"\",IF(H18-BB18<=0,1,H18-BB18))","v":1},{"$f":"CONCATENATE(BD18,BF18)","v":"14"},{"$f":"IF(K18=\"\",\"\",IF(K18-BC18<0,1,K18-BC18))","v":4},{"$nulls":42},"Procedimientos Formales aplicados"]
[null,{"$f":"B18+1","v":2},"Factor_del_Proceso","Responsables de proceso","Medición no oportuna de los indicadores",null,"Disminución en la calidad del servicio",{"$nulls":7},"Control Preventivo","Se cuenta con indicadores por proceso y su frecuencia de medición","A Solicitud","Afecta la Probabilidad","Si",15,"Si",5,"No",0,"Si",10,"Si",15,"Si",10,"No",0,{"$f":"T$19+V$19+X$19+Z$19+AB$19+AD$19+AF$19","v":55},"Disminuye la Probabilidad en 1",1,{"$nulls":8},"Realizar auditorias a los resultados de indicadores de proceso","Auditores internos de calidad","2016-01-01","2016-12-01",null,null,1,null,"No aplica",{"$f":"IF(Matriz!R19=\"Afecta el Impacto\",CONCATENATE(AW19,AZ19),CONCATENATE(AX19,AY19))","v":"1"},{"$nulls":47},"Pólizas"]
[null,{"$f":"B19+1","v":3},"Factor_Interno","Comunicación interna","Desconocimiento de los indicadores por parte de los funcionarios",{"$nulls":14},0,null,0,null,0,null,0,null,0,null,0,null,0,{"$f":"T$20+V$20+X$20+Z$20+AB$20+AD$20+AF$20","v":0},"",0,{"$nulls":8},"Solicitar a la Oficina de Planeación y Desarrollo Institucional informe con corte trimestral sobre el avance de los indicadores de Gestión","Director Centro de la Calidad y la acreditación Institucional","2016-01-01","2016-12-01",null,null,"No aplica",null,"No aplica",{"$f":"IF(Matriz!R20=\"Afecta el Impacto\",CONCATENATE(AW20,AZ20),CONCATENATE(AX20,AY20))","v":"No aplica"},{"$nulls":47},"Seguridad Física"]
[null,4,{"$nulls":17},0,null,0,null,0,null,0,null,0,null,0,null,0,{"$f":"T$21+V$21+X$21+Z$21+AB$21+AD$21+AF$21","v":0},"",0,{"$nulls":14},"No aplica",null,"No aplica",{"$nulls":48},"Contingencias y Respaldo"]
[null,5,{"$nulls":17},0,null,0,null,0,null,0,null,0,null,0,null,0,{"$f":"T$22+V$22+X$22+Z$22+AB$22+AD$22+AF$22","v":0},"",0,{"$nulls":14},"No aplica",null,"No aplica",{"$nulls":48},"Personal Capacitado"]
[null,6,{"$nulls":17},0,null,0,null,0,null,0,null,0,null,0,null,0,{"$f":"T$23+V$23+X$23+Z$23+AB$23+AD$23+AF$23","v":0},"",0,{"$nulls":14},"No aplica",null,"No aplica",{"$nulls":48},"Aseguramiento y Calidad"]
[null,7,{"$nulls":17},0,null,0,null,0,null,0,null,0,null,0,null,0,{"$f":"T$24+V$24+X$24+Z$24+AB$24+AD$24+AF$24","v":0},{"$f":"IF(R24=\"\",\"\",IF(R24=\"Afecta la Probabilidad\",IF(AND(AG24>=0,AG24<=50),\"No disminuye la Probabilidad\",IF(AND(AG24>50,AG24<=75),\"Disminuye la Probabilidad en 1\",IF(AND(AG24>75,AG24<=100),\"Disminuye la Probabilidad en 2\",\"\"))),IF(AND(AG24>=0,AG24<=50),\"No disminuye el Impacto\",IF(AND(AG24>50,AG24<=75),\"Disminuye el Impacto en 1\",IF(AND(AG24>75,AG24<=100),\"Disminuye el Impacto en 2\",\"\")))))","v":""},0,{"$nulls":14},"No aplica",null,"No aplica"]
[null,8,{"$nulls":17},0,null,0,null,0,null,0,null,0,null,0,null,0,{"$f":"T$25+V$25+X$25+Z$25+AB$25+AD$25+AF$25","v":0},"",0,{"$nulls":14},"No aplica",null,"No aplica"]
[null,9,{"$nulls":17},0,null,0,null,0,null,0,null,0,null,0,null,0,{"$f":"T$26+V$26+X$26+Z$26+AB$26+AD$26+AF$26","v":0},"",0,{"$nulls":14},"No aplica",null,"No aplica"]
["R3",1,"Factor_Externo","Politicos","Cambio de los lineamientos por parte del MEN Y CNA","No obtener la renovación de la acreditación Institucional de alta calidad\n\n\n","Pérdida de  reconocimiento institucional a nivel externo",2,{"$f":"IF(H27=5,\"Mas de una vez al año\",IF(H27=4,\"Al menos una vez en el ultimo año\",IF(H27=3,\"Al menos una vez en los ultimos 2 años\",IF(H27=2,\"Al menos una vez en los ultimos 5 años\",\"No se ha presentado en los ultimos 5 años\"))))","v":"Al menos una vez en los ultimos 5 años"},{"$f":"CONCATENATE(H$27,K$27)","v":"24"},4,{"$f":"IF(K27=5,\"Catastrófico\",IF(K27=4,\"Mayor\",IF(K27=3,\"Moderado\",IF(K27=2,\"Menos\",IF(K27=1,\"Insignificante\",\"Digite Valor entre 1 y 5\")))))","v":"Mayor"},{"$f":"IF(L27=\"Digite Valor entre 1 y 5\",\"\",IF(COUNTIF(CE$10:CE$17,CONCATENATE(H27,K27)),CE$9,IF(COUNTIF(CF$10:CF$17,CONCATENATE(H27,K27)),CF$9,IF(COUNTIF(CG$10:CG$13,CONCATENATE(H27,K27)),CG$9,CH$9))))","v":"Zona de Riesgo Alta"},{"$f":"IF(M27=CE$9,\"E\",IF(M27=CF$9,\"A\",IF(M27=CG$9,\"M\",IF(M27=CH$9,\"B\",\"\"))))","v":"A"},"Control Preventivo","Se mantiene la fortalezas identificadas en el proceso de autoevaluación ","Continuo","Afecta la Probabilidad","Si",15,"Si",5,"No",0,"Si",10,"Si",15,"Si",10,"Si",{"$f":"IF(AE27=\"Si\",30,0)","v":30},{"$f":"T27+V27+X27+Z27+AB27+AD27+AF27","v":85},"Disminuye la Probabilidad en 2",2,{"$f":"BD27","v":1},{"$f":"IF(AJ27=5,\"Mas de una vez al año\",IF(AJ27=4,\"Al menos una vez en el ultimo año\",IF(AJ27=3,\"Al menos una vez en los ultimos 2 años\",IF(AJ27=2,\"Al menos una vez en los ultimos 5 años\",\"No se ha presentado en los ultimos 5 años\"))))","v":"No se ha presentado en los ultimos 5 años"},{"$f":"BF27","v":4},{"$f":"IF(AL27=5,\"Catastrófico - Tendría desastrosas consecuencias o efectos sobre la institución\",IF(AL27=4,\"Mayor - Tendría altas consecuencias o efectos sobre la institución\",IF(AL27=3,\"Moderado - Tendría medianas consecuencias o efectos sobre la institución\",IF(AL27=2,\"Menos - Tendría bajo impacto o efecto sobre la institución\",IF(AL27=1,\"Insignificante - tendría consecuencias o efectos mínimos en la institución\",\"Digite Valor entre 1 y 5\")))))","v":"Mayor - Tendría altas consecuencias o efectos sobre la institución"},{"$f":"CONCATENATE(AJ27,AL27)","v":"14"},{"$f":"IF(COUNTIF($CE$10:$CE$17,AN27),$CE$9,IF(COUNTIF($CF$10:$CF$17,AN27),$CF$9,IF(COUNTIF($CG$10:$CG$13,AN27),$CG$9,IF(COUNTIF($CH$10:$CH$14,AN27),$CH$9,\"\"))))","v":"Zona de Riesgo Alta"},{"$f":"IF(AO27=CE9,\"E\",IF(AO27=CF9,\"A\",IF(AO27=CG9,\"M\",IF(AO27=CH9,\"B\",\"\"))))","v":"A"},null,"Realizar proceso de autoevaluación ","Comité de acreditación Institucional","2016-01-01","2016-12-01","Informes de autoevaluación",{"$f":"H27","v":2},2,{"$f":"K27","v":4},"No aplica",null,{"$f":"IF(R27=\"\",\"\",SUMIF(R27:R35,\"Afecta la Probabilidad\",AX27:AX35))","v":4},{"$f":"IF(R27=\"\",\"\",SUMIF(R27:R35,\"Afecta el Impacto\",AZ27:AZ35))","v":0},{"$f":"IF(BB27=\"\",\"\",IF(H27-BB27<=0,1,H27-BB27))","v":1},{"$f":"CONCATENATE(BD27,BF27)","v":"14"},{"$f":"IF(K27=\"\",\"\",IF(K27-BC27<0,1,K27-BC27))","v":4}]
[null,{"$f":"B27+1","v":2},"Factor_Interno","Estratégicos","No mostrar avances en las oportunidades de mejora consignadas en el plan de mejoramiento resultado del proceso de la autoevaluación",null,"Disminución de la demanda de aspirantes a programas académicos",{"$nulls":7},"Control Preventivo","Se hace seguimiento al plan de mejoramiento resultado del proceso de autoevaluación","Continuo","Afecta la Probabilidad","Si",15,"Si",5,"No",0,"Si",10,"Si",15,"Si",10,"Si",30,{"$f":"T28+V28+X28+Z28+AB28+AD28+AF28","v":85},{"$f":"IF(R28=\"\",\"\",IF(R28=\"Afecta la Probabilidad\",IF(AND(AG28>=0,AG28<=50),\"No disminuye la Probabilidad\",IF(AND(AG28>50,AG28<=75),\"Disminuye la Probabilidad en 1\",IF(AND(AG28>75,AG28<=100),\"Disminuye la Probabilidad en 2\",\"\"))),IF(AND(AG28>=0,AG28<=50),\"No disminuye el Impacto\",IF(AND(AG28>50,AG28<=75),\"Disminuye el Impacto en 1\",IF(AND(AG28>75,AG28<=100),\"Disminuye el Impacto en 2\",\"\")))))","v":"Disminuye la Probabilidad en 2"},2,{"$nulls":8},"Realizar seguimiento continuo al plan de mejoramaiento con el fin de mantener  las fortalezas y avanzar en las oportunidades de mejora","Jefe \nOficina de Planeación y Desarrollo Institucional\nVicerrector Académico","2016-01-01","2016-12-01","Registro de los avances del plan de mejoramiento",null,2,null,"No aplica"]
[null,{"$f":"B28+1","v":3},"Factor_del_Proceso","Transversalidad","Información no suministrada de manera oportuna por parte de los procesos implicados",null,"Baja preferencia de entidades externas para la realización de convenios",{"$nulls":12},0,null,0,null,0,null,0,null,0,null,0,null,0,{"$f":"T29+V29+X29+Z29+AB29+AD29+AF29","v":0},{"$f":"IF(R29=\"\",\"\",IF(R29=\"Afecta la Probabilidad\",IF(AND(AG29>=0,AG29<=50),\"No disminuye la Probabilidad\",IF(AND(AG29>50,AG29<=75),\"Disminuye la Probabilidad en 1\",IF(AND(AG29>75,AG29<=100),\"Disminuye la Probabilidad en 2\",\"\"))),IF(AND(AG29>=0,AG29<=50),\"No disminuye el Impacto\",IF(AND(AG29>50,AG29<=75),\"Disminuye el Impacto en 1\",IF(AND(AG29>75,AG29<=100),\"Disminuye el Impacto en 2\",\"\")))))","v":""},0,{"$nulls":14},"No aplica",null,"No aplica"]
[null,4,{"$nulls":17},0,null,0,null,0,null,0,null,0,null,0,null,0,{"$f":"T30+V30+X30+Z30+AB30+AD30+AF30","v":0},{"$f":"IF(R30=\"\",\"\",IF(R30=\"Afecta la Probabilidad\",IF(AND(AG30>=0,AG30<=50),\"No disminuye la Probabilidad\",IF(AND(AG30>50,AG30<=75),\"Disminuye la Probabilidad en 1\",IF(AND(AG30>75,AG30<=100),\"Disminuye la Probabilidad en 2\",\"\"))),IF(AND(AG30>=0,AG30<=50),\"No disminuye el Impacto\",IF(AND(AG30>50,AG30<=75),\"Disminuye el Impacto en 1\",IF(AND(AG30>75,AG30<=100),\"Disminuye el Impacto en 2\",\"\")))))","v":""},0,{"$nulls":14},"No aplica",null,"No aplica"]
[null,5,{"$nulls":17},0,null,0,null,0,null,0,null,0,null,0,null,0,{"$f":"T$31+V$31+X$31+Z$31+AB$31+AD$31+AF$31","v":0},{"$f":"IF(R31=\"\",\"\",IF(R31=\"Afecta la Probabilidad\",IF(AND(AG31>=0,AG31<=50),\"No disminuye la Probabilidad\",IF(AND(AG31>50,AG31<=75),\"Disminuye la Probabilidad en 1\",IF(AND(AG31>75,AG31<=100),\"Disminuye la Probabilidad en 2\",\"\"))),IF(AND(AG31>=0,AG31<=50),\"No disminuye el Impacto\",IF(AND(AG31>50,AG31<=75),\"Disminuye el Impacto en 1\",IF(AND(AG31>75,AG31<=100),\"Disminuye el Impacto en 2\",\"\")))))","v":""},0,{"$nulls":14},"No aplica",null,"No aplica"]
[null,6,{"$nulls":17},0,null,0,null,0,null,0,null,0,null,0,null,0,{"$f":"T$32+V$32+X$32+Z$32+AB$32+AD$32+AF$32","v":0},"",0,{"$nulls":14},"No aplica",null,"No aplica"]
[null,7,{"$nulls":17},0,null,0,null,0,null,0,null,0,null,0,null,0,{"$f":"T$33+V$33+X$33+Z$33+AB$33+AD$33+AF$33","v":0},"",0,{"$nulls":14},"No aplica",null,"No aplica"]
[null,8,{"$nulls":17},0,null,0,null,0,null,0,null,0,null,0,null,0,{"$f":"T$34+V$34+X$34+Z$34+AB$34+AD$34+AF$34","v":0},"",0,{"$nulls":14},"No aplica",null,"No aplica"]
[null,9,{"$nulls":17},0,null,0,null,0,null,0,null,0,null,0,null,0,{"$f":"T$35+V$35+X$35+Z$35+AB$35+AD$35+AF$35","v":0},"",0,{"$nulls":14},"No aplica",null,"No aplica"]
["R4",1,"Factor_Externo","Politicos","Criterios de calificación de los evaluadores del MEN","Negación de la obtención o renovación del registro calificado para un programa académico","Reducción de la Oferta académica",2,{"$f":"IF(H36=5,\"Mas de una vez al año\",IF(H36=4,\"Al menos una vez en el ultimo año\",IF(H36=3,\"Al menos una vez en los ultimos 2 años\",IF(H36=2,\"Al menos una vez en los ultimos 5 años\",\"No se ha presentado en los ultimos 5 años\"))))","v":"Al menos una vez en los ultimos 5 años"},{"$f":"CONCATENATE(H$36,K$36)","v":"23"},3,{"$f":"IF(K36=5,\"Catastrófico\",IF(K36=4,\"Mayor\",IF(K36=3,\"Moderado\",IF(K36=2,\"Menos\",IF(K36=1,\"Insignificante\",\"Digite Valor entre 1 y 5\")))))","v":"Moderado"},{"$f":"IF(L36=\"Digite Valor entre 1 y 5\",\"\",IF(COUNTIF(CE$10:CE$17,CONCATENATE(H36,K36)),CE$9,IF(COUNTIF(CF$10:CF$17,CONCATENATE(H36,K36)),CF$9,IF(COUNTIF(CG$10:CG$13,CONCATENATE(H36,K36)),CG$9,CH$9))))","v":"Zona de Riesgo Moderada"},{"$f":"IF(M36=CE$9,\"E\",IF(M36=CF$9,\"A\",IF(M36=CG$9,\"M\",IF(M36=CH$9,\"B\",\"\"))))","v":"M"},"Control Preventivo","Notificaciones previas al vencimiento del registro al responsable del programa","Continuo","Afecta la Probabilidad","No",0,"Si",5,"No",0,"Si",10,"Si",15,"Si",10,"Si",{"$f":"IF(AE36=\"Si\",30,0)","v":30},{"$f":"T$36+V$36+X$36+Z$36+AB$36+AD$36+AF$36","v":70},{"$f":"IF(R36=\"\",\"\",IF(R36=\"Afecta la Probabilidad\",IF(AND(AG36>=0,AG36<=50),\"No disminuye la Probabilidad\",IF(AND(AG36>50,AG36<=75),\"Disminuye la Probabilidad en 1\",IF(AND(AG36>75,AG36<=100),\"Disminuye la Probabilidad en 2\",\"\"))),IF(AND(AG36>=0,AG36<=50),\"No disminuye el Impacto\",IF(AND(AG36>50,AG36<=75),\"Disminuye el Impacto en 1\",IF(AND(AG36>75,AG36<=100),\"Disminuye el Impacto en 2\",\"\")))))","v":"Disminuye la Probabilidad en 1"},1,{"$f":"BD36","v":1},{"$f":"IF(AJ36=5,\"Mas de una vez al año\",IF(AJ36=4,\"Al menos una vez en el ultimo año\",IF(AJ36=3,\"Al menos una vez en los ultimos 2 años\",IF(AJ36=2,\"Al menos una vez en los ultimos 5 años\",\"No se ha presentado en los ultimos 5 años\"))))","v":"No se ha presentado en los ultimos 5 años"},{"$f":"BF36","v":3},{"$f":"IF(AL36=5,\"Catastrófico - Tendría desastrosas consecuencias o efectos sobre la institución\",IF(AL36=4,\"Mayor - Tendría altas consecuencias o efectos sobre la institución\",IF(AL36=3,\"Moderado - Tendría medianas consecuencias o efectos sobre la institución\",IF(AL36=2,\"Menos - Tendría bajo impacto o efecto sobre la institución\",IF(AL36=1,\"Insignificante - tendría consecuencias o efectos mínimos en la institución\",\"Digite Valor entre 1 y 5\")))))","v":"Moderado - Tendría medianas consecuencias o efectos sobre la institución"},{"$f":"CONCATENATE(AJ36,AL36)","v":"13"},{"$f":"IF(COUNTIF($CE$10:$CE$17,AN36),$CE$9,IF(COUNTIF($CF$10:$CF$17,AN36),$CF$9,IF(COUNTIF($CG$10:$CG$13,AN36),$CG$9,IF(COUNTIF($CH$10:$CH$14,AN36),$CH$9,\"\"))))","v":"Zona de Riesgo Moderada"},{"$f":"IF(AO36=CE9,\"E\",IF(AO36=CF9,\"A\",IF(AO36=CG9,\"M\",IF(AO36=CH9,\"B\",\"\"))))","v":"M"},null,"Realizar seguimiento al vencimiento de los registros calificados","Profesional Universitaria\nCentro de Gestión de la calidad","2016-01-01","2016-12-31","Comunicaciones escritas",{"$f":"H36","v":2},1,{"$f":"K36","v":3},"No aplica",null,{"$f":"IF(R36=\"\",\"\",SUMIF(R36:R44,\"Afecta la Probabilidad\",AX36:AX44))","v":5},{"$f":"IF(R36=\"\",\"\",SUMIF(R36:R44,\"Afecta el Impacto\",AZ36:AZ44))","v":0},{"$f":"IF(BB36=\"\",\"\",IF(H36-BB36<=0,1,H36-BB36))","v":1},{"$f":"CONCATENATE(BD36,BF36)","v":"13"},{"$f":"IF(K36=\"\",\"\",IF(K36-BC36<0,1,K36-BC36))","v":3}]
[null,{"$f":"B36+1","v":2},"Factor_Interno","Personal","Decisión de no continuar con el tramite de renovación del Registro Calificado",{"$nulls":9},"Control Preventivo","Cumplimiento de los plazos establecidos por el Ministerio","Continuo","Afecta la Probabilidad","Si",{"$f":"IF(S37=\"Si\",15,0)","v":15},"Si",{"$f":"IF(U37=\"Si\",5,0)","v":5},"No",{"$f":"IF(W37=\"Si\",15,0)","v":0},"Si",{"$f":"IF(Y37=\"Si\",10,0)","v":10},"Si",{"$f":"IF(AA37=\"Si\",15,0)","v":15},"Si",{"$f":"IF(AC37=\"Si\",10,0)","v":10},"Si",30,{"$f":"T$37+V$37+X$37+Z$37+AB$37+AD$37+AF$37","v":85},{"$f":"IF(R37=\"\",\"\",IF(R37=\"Afecta la Probabilidad\",IF(AND(AG37>=0,AG37<=50),\"No disminuye la Probabilidad\",IF(AND(AG37>50,AG37<=75),\"Disminuye la Probabilidad en 1\",IF(AND(AG37>75,AG37<=100),\"Disminuye la Probabilidad en 2\",\"\"))),IF(AND(AG37>=0,AG37<=50),\"No disminuye el Impacto\",IF(AND(AG37>50,AG37<=75),\"Disminuye el Impacto en 1\",IF(AND(AG37>75,AG37<=100),\"Disminuye el Impacto en 2\",\"\")))))","v":"Disminuye la Probabilidad en 2"},2,{"$nulls":8},"Asesorar a los responsables de los programas en la elaboración de los documentos de condiciones de calidad","Profesional Universitaria\nCentro de Gestión de la calidad","2016-01-01","2016-12-31","Documentos maestros de condiciones de calidad",null,2,null,"No aplica"]
[null,{"$f":"B37+1","v":3},"Factor_Interno","Estratégicos","No cumplir con las condiciones de calidad establecidas por el Ministerio de Educación Nacional",{"$nulls":9},"Control Preventivo","Procesos de autoevaluación","Anual","Afecta la Probabilidad","Si",15,"Si",5,"No",0,"Si",10,"Si",15,"Si",10,"Si",30,{"$f":"T38+V38+X38+Z38+AB38+AD38+AF38","v":85},{"$f":"IF(R38=\"\",\"\",IF(R38=\"Afecta la Probabilidad\",IF(AND(AG38>=0,AG38<=50),\"No disminuye la Probabilidad\",IF(AND(AG38>50,AG38<=75),\"Disminuye la Probabilidad en 1\",IF(AND(AG38>75,AG38<=100),\"Disminuye la Probabilidad en 2\",\"\"))),IF(AND(AG38>=0,AG38<=50),\"No disminuye el Impacto\",IF(AND(AG38>50,AG38<=75),\"Disminuye el Impacto en 1\",IF(AND(AG38>75,AG38<=100),\"Disminuye el Impacto en 2\",\"\")))))","v":"Disminuye la Probabilidad en 2"},2,{"$nulls":8},"Realizar los procesos de autoevaluación, materializados en los informes","Coordinador de programa académico","2016-01-01","2016-12-31","Informes de autoevaluación",null,2,null,"No aplica"]
[null,4,{"$nulls":17},0,null,0,null,0,null,0,null,0,null,0,null,0,{"$f":"T39+V39+X39+Z39+AB39+AD39+AF39","v":0},{"$f":"IF(R39=\"\",\"\",IF(R39=\"Afecta la Probabilidad\",IF(AND(AG39>=0,AG39<=50),\"No disminuye la Probabilidad\",IF(AND(AG39>50,AG39<=75),\"Disminuye la Probabilidad en 1\",IF(AND(AG39>75,AG39<=100),\"Disminuye la Probabilidad en 2\",\"\"))),IF(AND(AG39>=0,AG39<=50),\"No disminuye el Impacto\",IF(AND(AG39>50,AG39<=75),\"Disminuye el Impacto en 1\",IF(AND(AG39>75,AG39<=100),\"Disminuye el Impacto en 2\",\"\")))))","v":""},0,{"$nulls":14},"No aplica",null,"No aplica"]
[null,5,{"$nulls":17},0,null,0,null,0,null,0,null,0,null,0,null,0,{"$f":"T40+V40+X40+Z40+AB40+AD40+AF40","v":0},"",0,{"$nulls":14},"No aplica",null,"No aplica"]
[null,6,{"$nulls":17},0,null,0,null,0,null,0,null,0,null,0,null,0,{"$f":"T$41+V$41+X$41+Z$41+AB$41+AD$41+AF$41","v":0},"",0,{"$nulls":14},{"$f":"IF(R41=\"Afecta la Probabilidad\",AW41-(AW41-AI41),\"No aplica\")","v":"No aplica"},null,{"$f":"IF(R41=\"Afecta el Impacto\",AY41-(AY41-AI41),\"No aplica\")","v":"No aplica"}]
[null,7,{"$nulls":17},0,null,0,null,0,null,0,null,0,null,0,null,0,{"$f":"T$42+V$42+X$42+Z$42+AB$42+AD$42+AF$42","v":0},"",0,{"$nulls":14},"No aplica",null,"No aplica"]
[null,8,{"$nulls":17},0,null,0,null,0,null,0,null,0,null,0,null,0,{"$f":"T$43+V$43+X$43+Z$43+AB$43+AD$43+AF$43","v":0},"",0,{"$nulls":14},"No aplica",null,"No aplica"]
[null,9,{"$nulls":17},0,null,0,null,0,null,0,null,0,null,0,null,0,{"$f":"T$44+V$44+X$44+Z$44+AB$44+AD$44+AF$44","v":0},"",0,{"$nulls":14},"No aplica",null,"No aplica"]
["R5",1,{"$nulls":6},{"$f":"IF(H45=5,\"Mas de una vez al año\",IF(H45=4,\"Al menos una vez en el ultimo año\",IF(H45=3,\"Al menos una vez en los ultimos 2 años\",IF(H45=2,\"Al menos una vez en los ultimos 5 años\",\"No se ha presentado en los ultimos 5 años\"))))","v":"No se ha presentado en los ultimos 5 años"},{"$f":"CONCATENATE(H$45,K$45)","v":""},null,{"$f":"IF(K45=5,\"Catastrófico\",IF(K45=4,\"Mayor\",IF(K45=3,\"Moderado\",IF(K45=2,\"Menos\",IF(K45=1,\"Insignificante\",\"Digite Valor entre 1 y 5\")))))","v":"Digite Valor entre 1 y 5"},{"$f":"IF(L45=\"Digite Valor entre 1 y 5\",\"\",IF(COUNTIF(CE$10:CE$17,CONCATENATE(H45,K45)),CE$9,IF(COUNTIF(CF$10:CF$17,CONCATENATE(H45,K45)),CF$9,IF(COUNTIF(CG$10:CG$13,CONCATENATE(H45,K45)),CG$9,CH$9))))","v":""},{"$f":"IF(M45=CE$9,\"E\",IF(M45=CF$9,\"A\",IF(M45=CG$9,\"M\",IF(M45=CH$9,\"B\",\"\"))))","v":""},{"$nulls":5},0,null,0,null,0,null,0,null,0,null,0,null,0,{"$f":"T$45+V$45+X$45+Z$45+AB$45+AD$45+AF$45","v":0},{"$f":"IF(R45=\"\",\"\",IF(R45=\"Afecta la Probabilidad\",IF(AND(AG45>=0,AG45<=50),\"No disminuye la Probabilidad\",IF(AND(AG45>50,AG45<=75),\"Disminuye la Probabilidad en 1\",IF(AND(AG45>75,AG45<=100),\"Disminuye la Probabilidad en 2\",\"\"))),IF(AND(AG45>=0,AG45<=50),\"No disminuye el Impacto\",IF(AND(AG45>50,AG45<=75),\"Disminuye el Impacto en 1\",IF(AND(AG45>75,AG45<=100),\"Disminuye el Impacto en 2\",\"\")))))","v":""},0,{"$nulls":13},{"$f":"H45","v":0},"No aplica",{"$f":"K45","v":0},"No aplica",null,{"$f":"IF(R45=\"\",\"\",SUMIF(R45:R53,\"Afecta la Probabilidad\",AX45:AX53))","v":""},{"$f":"IF(R45=\"\",\"\",SUMIF(R45:R53,\"Afecta el Impacto\",AZ45:AZ53))","v":""},{"$f":"IF(BB45=\"\",\"\",IF(H45-BB45<=0,1,H45-BB45))","v":""},{"$f":"CONCATENATE(BD45,BF45)","v":""},{"$f":"IF(K45=\"\",\"\",IF(K45-BC45<0,1,K45-BC45))","v":""}]
[null,{"$f":"B45+1","v":2},{"$nulls":17},0,null,0,null,0,null,0,null,0,null,0,null,0,{"$f":"T46+V46+X46+Z46+AB46+AD46+AF46","v":0},"",0,{"$nulls":14},"No aplica",null,"No aplica"]
[null,3,{"$nulls":17},0,null,0,null,0,null,0,null,0,null,0,null,0,{"$f":"T47+V47+X47+Z47+AB47+AD47+AF47","v":0},"",0,{"$nulls":14},"No aplica",null,"No aplica"]
[null,4,{"$nulls":17},0,null,0,null,0,null,0,null,0,null,0,null,0,{"$f":"T48+V48+X48+Z48+AB48+AD48+AF48","v":0},"",0,{"$nulls":14},"No aplica",null,"No aplica"]
[null,5,{"$nulls":17},0,null,0,null,0,null,0,null,0,null,0,null,0,{"$f":"T49+V49+X49+Z49+AB49+AD49+AF49","v":0},"",0,{"$nulls":14},"No aplica",null,"No aplica"]
[null,6,{"$nulls":17},0,null,0,null,0,null,0,null,0,null,0,null,0,{"$f":"T50+V50+X50+Z50+AB50+AD50+AF50","v":0},"",0,{"$nulls":14},"No aplica",null,"No aplica"]
[null,7,{"$nulls":17},0,null,0,null,0,null,0,null,0,null,0,null,0,{"$f":"T$51+V$51+X$51+Z$51+AB$51+AD$51+AF$51","v":0},{"$f":"IF(R51=\"\",\"\",IF(R51=\"Afecta la Probabilidad\",IF(AND(AG51>=0,AG51<=50),\"No disminuye la Probabilidad\",IF(AND(AG51>50,AG51<=75),\"Disminuye la Probabilidad en 1\",IF(AND(AG51>75,AG51<=100),\"Disminuye la Probabilidad en 2\",\"\"))),IF(AND(AG51>=0,AG51<=50),\"No disminuye el Impacto\",IF(AND(AG51>50,AG51<=75),\"Disminuye el Impacto en 1\",IF(AND(AG51>75,AG51<=100),\"Disminuye el Impacto en 2\",\"\")))))","v":""},0,{"$nulls":14},"No aplica",null,"No aplica"]
[null,8,{"$nulls":17},0,null,0,null,0,null,0,null,0,null,0,null,0,{"$f":"T$52+V$52+X$52+Z$52+AB$52+AD$52+AF$52","v":0},"",0,{"$nulls":14},"No aplica",null,"No aplica"]
[null,9,{"$nulls":17},0,null,0,null,0,null,0,null,0,null,0,null,0,{"$f":"T$53+V$53+X$53+Z$53+AB$53+AD$53+AF$53","v":0},"",0,{"$nulls":14},"No aplica",null,"No aplica",{"$f":"IF(Matriz!R53=\"Afecta el Impacto\",CONCATENATE(AW53,AZ53),CONCATENATE(AX53,AY53))","v":"No aplica"}]
["R6",1,{"$nulls":6},{"$f":"IF(H54=5,\"Mas de una vez al año\",IF(H54=4,\"Al menos una vez en el ultimo año\",IF(H54=3,\"Al menos una vez en los ultimos 2 años\",IF(H54=2,\"Al menos una vez en los ultimos 5 años\",\"No se ha presentado en los ultimos 5 años\"))))","v":"No se ha presentado en los ultimos 5 años"},{"$f":"CONCATENATE(H$54,K$54)","v":""},null,{"$f":"IF(K54=5,\"Catastrófico\",IF(K54=4,\"Mayor\",IF(K54=3,\"Moderado\",IF(K54=2,\"Menos\",IF(K54=1,\"Insignificante\",\"Digite Valor entre 1 y 5\")))))","v":"Digite Valor entre 1 y 5"},{"$f":"IF(L54=\"Digite Valor entre 1 y 5\",\"\",IF(COUNTIF(CE$10:CE$17,CONCATENATE(H54,K54)),CE$9,IF(COUNTIF(CF$10:CF$17,CONCATENATE(H54,K54)),CF$9,IF(COUNTIF(CG$10:CG$13,CONCATENATE(H54,K54)),CG$9,CH$9))))","v":""},{"$f":"IF(M54=CE$9,\"E\",IF(M54=CF$9,\"A\",IF(M54=CG$9,\"M\",IF(M54=CH$9,\"B\",\"\"))))","v":""},{"$nulls":5},{"$f":"IF(S54=\"Si\",15,0)","v":0},null,{"$f":"IF(U54=\"Si\",5,0)","v":0},null,{"$f":"IF(W54=\"Si\",15,0)","v":0},null,{"$f":"IF(Y54=\"Si\",10,0)","v":0},null,{"$f":"IF(AA54=\"Si\",15,0)","v":0},null,{"$f":"IF(AC54=\"Si\",10,0)","v":0},null,{"$f":"IF(AE54=\"Si\",30,0)","v":0},{"$f":"T$54+V$54+X$54+Z$54+AB$54+AD$54+AF$54","v":0},"",{"$f":"IF(AG54<=50,0,IF(AND(AG54>50,AG54<=75),1,IF(AND(AG54>75,AG54<=100),2,\"\")))","v":0},{"$nulls":13},{"$f":"H54","v":0},"No aplica",{"$f":"K54","v":0},"No aplica",null,{"$f":"IF(R54=\"\",\"\",SUMIF(R54:R62,\"Afecta la Probabilidad\",AX54:AX62))","v":""},{"$f":"IF(R54=\"\",\"\",SUMIF(R54:R62,\"Afecta el Impacto\",AZ54:AZ62))","v":""},{"$f":"IF(BB54=\"\",\"\",IF(H54-BB54<=0,1,H54-BB54))","v":""},{"$f":"CONCATENATE(BD54,BF54)","v":""},{"$f":"IF(K54=\"\",\"\",IF(K54-BC54<0,1,K54-BC54))","v":""},{"$nulls":24},{"$f":"COUNTIF(CE10:CE17,CONCATENATE(H9,K9))","v":0},{"$f":"COUNTIF(CF10:CF17,CONCATENATE(H9,K9))","v":1},{"$f":"COUNTIF(CG10:CG17,CONCATENATE(I9,L9))","v":0},{"$f":"COUNTIF(CH10:CH17,CONCATENATE(J9,M9))","v":0}]
[null,2,{"$nulls":17},0,null,0,null,0,null,0,null,0,null,0,null,0,{"$f":"T55+V55+X55+Z55+AB55+AD55+AF55","v":0},{"$f":"IF(R55=\"\",\"\",IF(R55=\"Afecta la Probabilidad\",IF(AND(AG55>=0,AG55<=50),\"No disminuye la Probabilidad\",IF(AND(AG55>50,AG55<=75),\"Disminuye la Probabilidad en 1\",IF(AND(AG55>75,AG55<=100),\"Disminuye la Probabilidad en 2\",\"\"))),IF(AND(AG55>=0,AG55<=50),\"No disminuye el Impacto\",IF(AND(AG55>50,AG55<=75),\"Disminuye el Impacto en 1\",IF(AND(AG55>75,AG55<=100),\"Disminuye el Impacto en 2\",\"\")))))","v":""},0,{"$nulls":14},"No aplica",null,"No aplica"]
[null,3,{"$nulls":17},0,null,0,null,0,null,0,null,0,null,0,null,0,{"$f":"T56+V56+X56+Z56+AB56+AD56+AF56","v":0},{"$f":"IF(R56=\"\",\"\",IF(R56=\"Afecta la Probabilidad\",IF(AND(AG56>=0,AG56<=50),\"No disminuye la Probabilidad\",IF(AND(AG56>50,AG56<=75),\"Disminuye la Probabilidad en 1\",IF(AND(AG56>75,AG56<=100),\"Disminuye la Probabilidad en 2\",\"\"))),IF(AND(AG56>=0,AG56<=50),\"No disminuye el Impacto\",IF(AND(AG56>50,AG56<=75),\"Disminuye el Impacto en 1\",IF(AND(AG56>75,AG56<=100),\"Disminuye el Impacto en 2\",\"\")))))","v":""},0,{"$nulls":14},"No aplica",null,"No aplica"]
[null,4,{"$nulls":17},0,null,0,null,0,null,0,null,0,null,0,null,0,{"$f":"T57+V57+X57+Z57+AB57+AD57+AF57","v":0},{"$f":"IF(R57=\"\",\"\",IF(R57=\"Afecta la Probabilidad\",IF(AND(AG57>=0,AG57<=50),\"No disminuye la Probabilidad\",IF(AND(AG57>50,AG57<=75),\"Disminuye la Probabilidad en 1\",IF(AND(AG57>75,AG57<=100),\"Disminuye la Probabilidad en 2\",\"\"))),IF(AND(AG57>=0,AG57<=50),\"No disminuye el Impacto\",IF(AND(AG57>50,AG57<=75),\"Disminuye el Impacto en 1\",IF(AND(AG57>75,AG57<=100),\"Disminuye el Impacto en 2\",\"\")))))","v":""},0,{"$nulls":14},"No aplica",null,"No aplica"]
[null,5,{"$nulls":17},0,null,0,null,0,null,0,null,0,null,0,null,0,{"$f":"T58+V58+X58+Z58+AB58+AD58+AF58","v":0},{"$f":"IF(R58=\"\",\"\",IF(R58=\"Afecta la Probabilidad\",IF(AND(AG58>=0,AG58<=50),\"No disminuye la Probabilidad\",IF(AND(AG58>50,AG58<=75),\"Disminuye la Probabilidad en 1\",IF(AND(AG58>75,AG58<=100),\"Disminuye la Probabilidad en 2\",\"\"))),IF(AND(AG58>=0,AG58<=50),\"No disminuye el Impacto\",IF(AND(AG58>50,AG58<=75),\"Disminuye el Impacto en 1\",IF(AND(AG58>75,AG58<=100),\"Disminuye el Impacto en 2\",\"\")))))","v":""},0,{"$nulls":14},"No aplica",null,"No aplica"]
[null,6,{"$nulls":17},0,null,0,null,0,null,0,null,0,null,0,null,0,{"$f":"T59+V59+X59+Z59+AB59+AD59+AF59","v":0},"",0,{"$nulls":14},"No aplica",null,"No aplica"]
[null,7,{"$nulls":17},0,null,0,null,0,null,0,null,0,null,0,null,0,{"$f":"T$51+V$51+X$51+Z$51+AB$51+AD$51+AF$51","v":0},"",{"$f":"IF(AG60<=50,0,IF(AND(AG60>50,AG60<=75),1,IF(AND(AG60>75,AG60<=100),2,\"\")))","v":0},{"$nulls":14},"No aplica",null,"No aplica"]
[null,8,{"$nulls":17},0,null,0,null,0,null,0,null,0,null,0,null,0,{"$f":"T$52+V$52+X$52+Z$52+AB$52+AD$52+AF$52","v":0},"",0,{"$nulls":14},"No aplica",null,"No aplica"]
[null,9,{"$nulls":17},0,null,0,null,0,null,0,null,0,null,0,null,0,{"$f":"T$53+V$53+X$53+Z$53+AB$53+AD$53+AF$53","v":0},"",0,{"$nulls":14},"No aplica",null,"No aplica",{"$f":"IF(Matriz!R62=\"Afecta el Impacto\",CONCATENATE(AW62,AZ62),CONCATENATE(AX62,AY62))","v":"No aplica"}]
[null,null,"ELABORADO POR:",{"$nulls":3},"FUNCIONARIOS CENTRO DE GESTIÓN DE LA CALIDAD Y LA ACREDITACIÓN INSTITUCIONAL"]
[null,null,"REVISADO POR:"]
[null,null,"APROBADO POR:",{"$nulls":3},"JUAN CARLOS VARONA ALBAN - DIRECTOR CENTRO DE GESTIÓN DE LA CALIDAD Y LA ACREDITACIÓN INSTITUCIONAL"]
[]
[]
[null,null,1,2,3,4,5,6,{"$f":"H68+1","v":7},{"$f":"I68+1","v":8},9,10,11,12,13,14,15,16,17,18,19,20,21,22,23,24,25,26,27,28,29,30,31,32,33,{"$f":"AI68+1","v":34},35,36,37,38,39,40,41,42,43,44,45,46,47,48,49,50]
[null,null,{"$f":"9*C68","v":9},{"$f":"9*D68","v":18},27,36,45,54,63,72,81,90,99,108,117,126,135,144,153,162,171,180,189,198,207,216,225,234,243,252,261,270,279,288,297,{"$f":"9*AJ68","v":306},315,324,333,342,351,360,369,378,387,396,405,414,423,432,441,450]
[null,null,"R1","R2","R3","R4","R5","R6","R7","R8","R9","R10","R11","R12","R13","R14","R15","R16","R17","R18","R19","R20","R21","R22","R23","R24","R25","R26","R27","R28","R29","R30","R31","R32","R33","R34","R35","R36","R37","R38","R39","R40","R41","R42","R43","R44","R45","R46","R47","R48","R49","R50"]
[null,null,{"$f":"IF(N9=\"E\",1,0)","v":0},{"$f":"IF(N18=\"E\",1,0)","v":0},{"$f":"IF(N27=\"E\",1,0)","v":0},{"$f":"IF(N36=\"E\",1,0)","v":0},{"$f":"IF(N45=\"E\",1,0)","v":0}]
[null,null,{"$f":"IF(N9=\"A\",1,0)","v":1},{"$f":"IF(N18=\"A\",1,0)","v":1},{"$f":"IF(N27=\"A\",1,0)","v":1},{"$f":"IF(N36=\"A\",1,0)","v":0},{"$f":"IF(N45=\"A\",1,0)","v":0}]
[null,null,{"$f":"IF(N9=\"M\",1,0)","v":0},{"$f":"IF(N18=\"M\",1,0)","v":0},{"$f":"IF(N27=\"M\",1,0)","v":0},{"$f":"IF(N36=\"M\",1,0)","v":1},{"$f":"IF(N45=\"M\",1,0)","v":0}]
[null,null,{"$f":"IF(N9=\"B\",1,0)","v":0},{"$f":"IF(N18=\"B\",1,0)","v":0},{"$f":"IF(N27=\"B\",1,0)","v":0},{"$f":"IF(N36=\"B\",1,0)","v":0},{"$f":"IF(N45=\"B\",1,0)","v":0}]
[null,null,{"$f":"SUM(C71:C74)","v":1},{"$f":"SUM(D71:D74)","v":1},1,1,0,0,0,0,0,0,0,0,0,0,0,0,0,0,0,0,0,0,0,0,0,0,0,0,0,0,0,0,0,{"$nulls":8},{"$f":"SUM(AJ71:AJ74)","v":0},0,0,0,0,0,0,0,0,0]
[null,null,1,2,3,4,5,6,{"$f":"H76+1","v":7},8,9,10,11,12,13,14,15,16,17,18,19,20,21,22,23,24,25,26,27,28,29,30,31,32,33,{"$f":"AI76+1","v":34},35,36,37,38,39,40,41,42,43,44,45,46,47,48,49,50]
[null,null,{"$f":"9*C76","v":9},{"$f":"9*D76","v":18},27,36,45,54,63,72,81,90,99,108,117,126,135,144,153,162,171,180,189,198,207,216,225,234,243,252,261,270,279,288,297,{"$f":"9*AJ76","v":306},315,324,333,342,351,360,369,378,387,396,405,414,423,432,441,450]
[null,null,"R1","R2","R3","R4","R5","R6","R7","R8","R9","R10","R11","R12","R13","R14","R15","R16","R17","R18","R19","R20","R21","R22","R23","R24","R25","R26","R27","R28","R29","R30","R31","R32","R33","R34","R35","R36","R37","R38","R39","R40","R41","R42","R43","R44","R45","R46","R47","R48","R49","R50","R52"]
[null,null,{"$f":"IF(AP9=\"E\",1,0)","v":0},{"$f":"IF(AP18=\"E\",1,0)","v":0},{"$f":"IF(AP27=\"E\",1,0)","v":0},{"$f":"IF(AP36=\"E\",1,0)","v":0}]
[null,null,{"$f":"IF(AP9=\"A\",1,0)","v":0},{"$f":"IF(AP18=\"A\",1,0)","v":1},{"$f":"IF(AP27=\"A\",1,0)","v":1},{"$f":"IF(AP36=\"A\",1,0)","v":0}]
[null,null,{"$f":"IF(AP9=\"M\",1,0)","v":1},{"$f":"IF(AP18=\"M\",1,0)","v":0},{"$f":"IF(AP27=\"M\",1,0)","v":0},{"$f":"IF(AP36=\"M\",1,0)","v":1}]
[null,null,{"$f":"IF(AP9=\"B\",1,0)","v":0},{"$f":"IF(AP18=\"B\",1,0)","v":0},{"$f":"IF(AP27=\"B\",1,0)","v":0},{"$f":"IF(AP36=\"B\",1,0)","v":0}]
[null,null,{"$f":"SUM(C79:C82)","v":1},1,1,1,0,0,0,0,0,0,0,0,0,0,0,0,0,0,0,0,0,0,0,0,0,0,0,0,0,0,0,0,0]
[]
[null,null,"RIESGO INHERENTE",null,null,"RIESGO RESIDUAL"]
[null,null,"NIVEL","CANTIDAD",null,"NIVEL","CANTIDAD"]
[null,null,"Zona de riesgo extrema",{"$f":"SUM(C71:BM71)","v":0},null,"Zona de riesgo extrema",{"$f":"SUM(C79:BM79)","v":0}]
[null,null,"Zona riesgo alta",{"$f":"SUM(C72:BM72)","v":3},null,"Zona riesgo alta",{"$f":"SUM(C80:BM80)","v":2}]
[null,null,"Zona de riesgo moderado",{"$f":"SUM(C73:BM73)","v":1},null,"Zona de riesgo moderado",{"$f":"SUM(C81:BM81)","v":2}]
[null,null,"Zona de riesgo baja",{"$f":"SUM(C74:BM74)","v":0},null,"Zona de riesgo baja",{"$f":"SUM(C82:BM82)","v":0}]
[null,null,"Total",{"$f":"SUM(D87:D90)","v":4},null,"Total",{"$f":"SUM(G87:G90)","v":4}]

{"sheet":"Mapa Riesgo Inherente ","index":3,"n_rows":41,"n_cols":18,"rows_kept":41,"merged":[[1,2,1,13],[2,4,2,5],[2,6,2,7],[2,8,2,9],[2,10,2,11],[2,12,2,13],[3,2,3,3],[3,4,3,5],[3,6,3,7],[3,8,3,9],[3,10,3,11],[3,12,3,13],[4,2,4,3],[5,1,19,1],[23,16,28,19],[31,17,31,19],[34,17,34,19],[37,17,37,19],[40,17,40,19]]}
[]
[null,null,"IMPACTO"]
[{"$nulls":4},1,null,2,null,3,null,4,null,5]
[{"$nulls":4},"INSIGNIFICANTE",null,"MENOR",null,"MODERADO",null,"MAYOR",null,"CATASTRÓFICO"]
[]
[null,"PROBABILIDAD",null,null,{"$f":"IF(CONCATENATE(C$7,E$3)=Matriz!$J$9,CONCATENATE(Matriz!A9,\" - P1 I1\"),\"\")","v":""},{"$f":"IF(CONCATENATE(C$7,E$3)=Matriz!$J$36,CONCATENATE(Matriz!A36,\" - P1 I1\"),\"\")","v":""},{"$f":"IF(CONCATENATE(C$7,G$3)=Matriz!$J$9,CONCATENATE(Matriz!A9,\" - P1 I2\"),\"\")","v":""},{"$f":"IF(CONCATENATE(C$7,G$3)=Matriz!$J$36,CONCATENATE(Matriz!A36,\" - P1 I2\"),\"\")","v":""},{"$f":"IF(CONCATENATE(C$7,I$3)=Matriz!$J$9,CONCATENATE(Matriz!A9,\" - P1 I3\"),\"\")","v":""},{"$f":"IF(CONCATENATE(C$7,I$3)=Matriz!$J$36,CONCATENATE(Matriz!A36,\" - P1 I3\"),\"\")","v":""},{"$f":"IF(CONCATENATE(C$7,K$3)=Matriz!$J$9,CONCATENATE(Matriz!A9,\" - P1 I4\"),\"\")","v":""},{"$f":"IF(CONCATENATE(C$7,K$3)=Matriz!$J$36,CONCATENATE(Matriz!A36,\" - P1 I4\"),\"\")","v":""},{"$f":"IF(CONCATENATE(C$7,M$3)=Matriz!$J$9,CONCATENATE(Matriz!A9,\" - P1 I5\"),\"\")","v":""},{"$f":"IF(CONCATENATE(C$7,M$3)=Matriz!$J$36,CONCATENATE(Matriz!A36,\" - P1 I5\"),\"\")","v":""}]
[null,null,1,"RARO",{"$f":"IF(CONCATENATE(C$7,E$3)=Matriz!$J$18,CONCATENATE(Matriz!A18,\" - P1 I1\"),\"\")","v":""},{"$f":"IF(CONCATENATE(C$7,E$3)=Matriz!$J$45,CONCATENATE(Matriz!A45,\" - P1 I1\"),\"\")","v":""},{"$f":"IF(CONCATENATE(C$7,G$3)=Matriz!$J$18,CONCATENATE(Matriz!A18,\" - P1 I2\"),\"\")","v":""},{"$f":"IF(CONCATENATE(C$7,G$3)=Matriz!$J$45,CONCATENATE(Matriz!A45,\" - P1 I2\"),\"\")","v":""},{"$f":"IF(CONCATENATE(C$7,I$3)=Matriz!$J$18,CONCATENATE(Matriz!A18,\" - P1 I3\"),\"\")","v":""},{"$f":"IF(CONCATENATE(C$7,I$3)=Matriz!$J$45,CONCATENATE(Matriz!A45,\" - P1 I3\"),\"\")","v":""},{"$f":"IF(CONCATENATE(C$7,K$3)=Matriz!$J$18,CONCATENATE(Matriz!A18,\" - P1 I4\"),\"\")","v":""},{"$f":"IF(CONCATENATE(C$7,K$3)=Matriz!$J$45,CONCATENATE(Matriz!A45,\" - P1 I4\"),\"\")","v":""},{"$f":"IF(CONCATENATE(C$7,M$3)=Matriz!$J$18,CONCATENATE(Matriz!A18,\" - P1 I5\"),\"\")","v":""},{"$f":"IF(CONCATENATE(C$7,M$3)=Matriz!$J$45,CONCATENATE(Matriz!A45,\" - P1 I5\"),\"\")","v":""}]
[{"$nulls":4},{"$f":"IF(CONCATENATE(C$7,E$3)=Matriz!$J$27,CONCATENATE(Matriz!A27,\" - P1 I1\"),\"\")","v":""},{"$f":"IF(CONCATENATE(C$7,E$3)=Matriz!$J$54,CONCATENATE(Matriz!A54,\" - P1 I1\"),\"\")","v":""},{"$f":"IF(CONCATENATE(C$7,G$3)=Matriz!$J$27,CONCATENATE(Matriz!A27,\" - P1 I2\"),\"\")","v":""},{"$f":"IF(CONCATENATE(C$7,G$3)=Matriz!$J$54,CONCATENATE(Matriz!A54,\" - P1 I2\"),\"\")","v":""},{"$f":"IF(CONCATENATE(C$7,I$3)=Matriz!$J$27,CONCATENATE(Matriz!A27,\" - P1 I3\"),\"\")","v":""},{"$f":"IF(CONCATENATE(C$7,I$3)=Matriz!$J$54,CONCATENATE(Matriz!A54,\" - P1 I3\"),\"\")","v":""},{"$f":"IF(CONCATENATE(C$7,K$3)=Matriz!$J$27,CONCATENATE(Matriz!A27,\" - P1 I4\"),\"\")","v":""},{"$f":"IF(CONCATENATE(C$7,K$3)=Matriz!$J$54,CONCATENATE(Matriz!A54,\" - P1 I4\"),\"\")","v":""},{"$f":"IF(CONCATENATE(C$7,M$3)=Matriz!$J$27,CONCATENATE(Matriz!A27,\" - P1 I5\"),\"\")","v":""},{"$f":"IF(CONCATENATE(C$7,M$3)=Matriz!$J$54,CONCATENATE(Matriz!A54,\" - P1 I5\"),\"\")","v":""}]
[{"$nulls":4},{"$f":"IF(CONCATENATE(C$10,E$3)=Matriz!$J$9,CONCATENATE(Matriz!A9,\" - P2 I1\"),\"\")","v":""},{"$f":"IF(CONCATENATE(C$10,E$3)=Matriz!$J$36,CONCATENATE(Matriz!A36,\" - P2 I1\"),\"\")","v":""},{"$f":"IF(CONCATENATE(C$10,G$3)=Matriz!$J$9,CONCATENATE(Matriz!A9,\" - P2 I2\"),\"\")","v":""},{"$f":"IF(CONCATENATE(C$10,G$3)=Matriz!$J$36,CONCATENATE(Matriz!A36,\" - P2 I2\"),\"\")","v":""},{"$f":"IF(CONCATENATE(C$10,I$3)=Matriz!$J$9,CONCATENATE(Matriz!A9,\" - P2 I3\"),\"\")","v":""},{"$f":"IF(CONCATENATE(C$10,I$3)=Matriz!$J$36,CONCATENATE(Matriz!A36,\" - P2 I3\"),\"\")","v":"R4 - P2 I3"},{"$f":"IF(CONCATENATE(C$10,K$3)=Matriz!$J$9,CONCATENATE(Matriz!A9,\" - P2 I4\"),\"\")","v":""},{"$f":"IF(CONCATENATE(C$10,K$3)=Matriz!$J$36,CONCATENATE(Matriz!A36,\" - P2 I4\"),\"\")","v":""},{"$f":"IF(CONCATENATE(C$10,M$3)=Matriz!$J$9,CONCATENATE(Matriz!A9,\" - P2 I5\"),\"\")","v":""},{"$f":"IF(CONCATENATE(C$10,M$3)=Matriz!$J$36,CONCATENATE(Matriz!A36,\" - P2 I5\"),\"\")","v":""}]
[null,null,2,"IMPROBABLE",{"$f":"IF(CONCATENATE(C$10,E$3)=Matriz!$J$18,CONCATENATE(Matriz!A18,\" - P2 I1\"),\"\")","v":""},{"$f":"IF(CONCATENATE(C$10,E$3)=Matriz!$J$45,CONCATENATE(Matriz!A45,\" - P2 I1\"),\"\")","v":""},{"$f":"IF(CONCATENATE(C$10,G$3)=Matriz!$J$18,CONCATENATE(Matriz!A18,\" - P2 I2\"),\"\")","v":""},{"$f":"IF(CONCATENATE(C$10,G$3)=Matriz!$J$45,CONCATENATE(Matriz!A45,\" - P2 I2\"),\"\")","v":""},{"$f":"IF(CONCATENATE(C$10,I$3)=Matriz!$J$18,CONCATENATE(Matriz!A18,\" - P2 I3\"),\"\")","v":""},{"$f":"IF(CONCATENATE(C$10,I$3)=Matriz!$J$45,CONCATENATE(Matriz!A45,\" - P2 I3\"),\"\")","v":""},{"$f":"IF(CONCATENATE(C$10,K$3)=Matriz!$J$18,CONCATENATE(Matriz!A18,\" - P2 I4\"),\"\")","v":"R2 - P2 I4"},{"$f":"IF(CONCATENATE(C$10,K$3)=Matriz!$J$45,CONCATENATE(Matriz!A45,\" - P2 I4\"),\"\")","v":""},{"$f":"IF(CONCATENATE(C$10,M$3)=Matriz!$J$18,CONCATENATE(Matriz!A18,\" - P2 I5\"),\"\")","v":""},{"$f":"IF(CONCATENATE(C$10,M$3)=Matriz!$J$45,CONCATENATE(Matriz!A45,\" - P2 I5\"),\"\")","v":""}]
[{"$nulls":4},{"$f":"IF(CONCATENATE(C$10,E$3)=Matriz!$J$27,CONCATENATE(Matriz!A27,\" - P2 I1\"),\"\")","v":""},{"$f":"IF(CONCATENATE(C$10,E$3)=Matriz!$J$54,CONCATENATE(Matriz!A54,\" - P2 I1\"),\"\")","v":""},{"$f":"IF(CONCATENATE(C$10,G$3)=Matriz!$J$27,CONCATENATE(Matriz!A27,\" - P2 I2\"),\"\")","v":""},{"$f":"IF(CONCATENATE(C$10,G$3)=Matriz!$J$54,CONCATENATE(Matriz!A54,\" - P2 I2\"),\"\")","v":""},{"$f":"IF(CONCATENATE(C$10,I$3)=Matriz!$J$27,CONCATENATE(Matriz!A27,\" - P2 I3\"),\"\")","v":""},{"$f":"IF(CONCATENATE(C$10,I$3)=Matriz!$J$54,CONCATENATE(Matriz!A54,\" - P2 I3\"),\"\")","v":""},{"$f":"IF(CONCATENATE(C$10,K$3)=Matriz!$J$27,CONCATENATE(Matriz!A27,\" - P2 I4\"),\"\")","v":"R3 - P2 I4"},{"$f":"IF(CONCATENATE(C$10,K$3)=Matriz!$J$54,CONCATENATE(Matriz!A54,\" - P2 I4\"),\"\")","v":""},{"$f":"IF(CONCATENATE(C$10,M$3)=Matriz!$J$27,CONCATENATE(Matriz!A27,\" - P2 I5\"),\"\")","v":""},{"$f":"IF(CONCATENATE(C$10,M$3)=Matriz!$J$54,CONCATENATE(Matriz!A54,\" - P2 I5\"),\"\")","v":""}]
[{"$nulls":4},{"$f":"IF(CONCATENATE(C$13,E$3)=Matriz!$J$9,CONCATENATE(Matriz!A9,\" - P3 I1\"),\"\")","v":""},{"$f":"IF(CONCATENATE(C$13,E$3)=Matriz!$J$36,CONCATENATE(Matriz!A36,\" - P3 I1\"),\"\")","v":""},{"$f":"IF(CONCATENATE(C$13,G$3)=Matriz!$J$9,CONCATENATE(Matriz!A9,\" - P3 I2\"),\"\")","v":""},{"$f":"IF(CONCATENATE(C$13,G$3)=Matriz!$J$36,CONCATENATE(Matriz!A36,\" - P3 I2\"),\"\")","v":""},{"$f":"IF(CONCATENATE(C$13,I$3)=Matriz!$J$9,CONCATENATE(Matriz!A9,\" - P3 I3\"),\"\")","v":""},{"$f":"IF(CONCATENATE(C$13,I$3)=Matriz!$J$36,CONCATENATE(Matriz!A36,\" - P3 I3\"),\"\")","v":""},{"$f":"IF(CONCATENATE(C$13,K$3)=Matriz!$J$9,CONCATENATE(Matriz!A9,\" - P3 I4\"),\"\")","v":""},{"$f":"IF(CONCATENATE(C$13,K$3)=Matriz!$J$36,CONCATENATE(Matriz!A36,\" - P3 I4\"),\"\")","v":""},{"$f":"IF(CONCATENATE(C$13,M$3)=Matriz!$J$9,CONCATENATE(Matriz!A9,\" - P3 I5\"),\"\")","v":""},{"$f":"IF(CONCATENATE(C$13,M$3)=Matriz!$J$36,CONCATENATE(Matriz!A36,\" - P3 I5\"),\"\")","v":""}]
[null,null,3,"MODERADO",{"$f":"IF(CONCATENATE(C$13,E$3)=Matriz!$J$18,CONCATENATE(Matriz!A18,\" - P3 I1\"),\"\")","v":""},{"$f":"IF(CONCATENATE(C$13,E$3)=Matriz!$J$45,CONCATENATE(Matriz!A45,\" - P3 I1\"),\"\")","v":""},{"$f":"IF(CONCATENATE(C$13,G$3)=Matriz!$J$18,CONCATENATE(Matriz!A18,\" - P3 I2\"),\"\")","v":""},{"$f":"IF(CONCATENATE(C$13,G$3)=Matriz!$J$45,CONCATENATE(Matriz!A45,\" - P3 I2\"),\"\")","v":""},{"$f":"IF(CONCATENATE(C$13,I$3)=Matriz!$J$18,CONCATENATE(Matriz!A18,\" - P3 I3\"),\"\")","v":""},{"$f":"IF(CONCATENATE(C$13,I$3)=Matriz!$J$45,CONCATENATE(Matriz!A45,\" - P3 I3\"),\"\")","v":""},{"$f":"IF(CONCATENATE(C$13,K$3)=Matriz!$J$18,CONCATENATE(Matriz!A18,\" - P3 I4\"),\"\")","v":""},{"$f":"IF(CONCATENATE(C$13,K$3)=Matriz!$J$45,CONCATENATE(Matriz!A45,\" - P3 I4\"),\"\")","v":""},{"$f":"IF(CONCATENATE(C$13,M$3)=Matriz!$J$18,CONCATENATE(Matriz!A18,\" - P3 I5\"),\"\")","v":""},{"$f":"IF(CONCATENATE(C$13,M$3)=Matriz!$J$45,CONCATENATE(Matriz!A45,\" - P3 I5\"),\"\")","v":""}]
[{"$nulls":4},{"$f":"IF(CONCATENATE(C$13,E$3)=Matriz!$J$27,CONCATENATE(Matriz!A27,\" - P3 I1\"),\"\")","v":""},{"$f":"IF(CONCATENATE(C$13,E$3)=Matriz!$J$54,CONCATENATE(Matriz!A54,\" - P3 I1\"),\"\")","v":""},{"$f":"IF(CONCATENATE(C$13,G$3)=Matriz!$J$27,CONCATENATE(Matriz!A27,\" - P3 I2\"),\"\")","v":""},{"$f":"IF(CONCATENATE(C$13,G$3)=Matriz!$J$54,CONCATENATE(Matriz!A54,\" - P3 I2\"),\"\")","v":""},{"$f":"IF(CONCATENATE(C$13,I$3)=Matriz!$J$27,CONCATENATE(Matriz!A27,\" - P3 I3\"),\"\")","v":""},{"$f":"IF(CONCATENATE(C$13,I$3)=Matriz!$J$54,CONCATENATE(Matriz!A54,\" - P3 I3\"),\"\")","v":""},{"$f":"IF(CONCATENATE(C$13,K$3)=Matriz!$J$27,CONCATENATE(Matriz!A27,\" - P3 I4\"),\"\")","v":""},{"$f":"IF(CONCATENATE(C$13,K$3)=Matriz!$J$54,CONCATENATE(Matriz!A54,\" - P3 I4\"),\"\")","v":""},{"$f":"IF(CONCATENATE(C$13,M$3)=Matriz!$J$27,CONCATENATE(Matriz!A27,\" - P3 I5\"),\"\")","v":""},{"$f":"IF(CONCATENATE(C$13,M$3)=Matriz!$J$54,CONCATENATE(Matriz!A54,\" - P3 I5\"),\"\")","v":""}]
[{"$nulls":4},{"$f":"IF(CONCATENATE(C$16,E$3)=Matriz!$J$9,CONCATENATE(Matriz!A9,\" - P4 I1\"),\"\")","v":""},{"$f":"IF(CONCATENATE(C$16,E$3)=Matriz!$J$36,CONCATENATE(Matriz!A36,\" - P4 I1\"),\"\")","v":""},{"$f":"IF(CONCATENATE(C$16,G$3)=Matriz!$J$9,CONCATENATE(Matriz!A9,\" - P4 I2\"),\"\")","v":""},{"$f":"IF(CONCATENATE(C$16,G$3)=Matriz!$J$36,CONCATENATE(Matriz!C36,\" - P4 I2\"),\"\")","v":""},{"$f":"IF(CONCATENATE(C$16,I$3)=Matriz!$J$9,CONCATENATE(Matriz!A9,\" - P4 I3\"),\"\")","v":"R1 - P4 I3"},{"$f":"IF(CONCATENATE(C$16,I$3)=Matriz!$J$36,CONCATENATE(Matriz!A36,\" - P4 I3\"),\"\")","v":""},{"$f":"IF(CONCATENATE(C$16,K$3)=Matriz!$J$9,CONCATENATE(Matriz!A9,\" - P4 I4\"),\"\")","v":""},{"$f":"IF(CONCATENATE(C$16,K$3)=Matriz!$J$36,CONCATENATE(Matriz!A36,\" - P4 I4\"),\"\")","v":""},{"$f":"IF(CONCATENATE(C$16,M$3)=Matriz!$J$9,CONCATENATE(Matriz!A9,\" - P4 I5\"),\"\")","v":""},{"$f":"IF(CONCATENATE(C$16,M$3)=Matriz!$J$36,CONCATENATE(Matriz!A36,\" - P4 I5\"),\"\")","v":""}]
[null,null,4,"PROBABLE",{"$f":"IF(CONCATENATE(C$16,E$3)=Matriz!$J$18,CONCATENATE(Matriz!A18,\" - P4 I1\"),\"\")","v":""},{"$f":"IF(CONCATENATE(C$16,E$3)=Matriz!$J$45,CONCATENATE(Matriz!A45,\" - P4 I1\"),\"\")","v":""},{"$f":"IF(CONCATENATE(C$16,G$3)=Matriz!$J$18,CONCATENATE(Matriz!A18,\" - P4 I2\"),\"\")","v":""},{"$f":"IF(CONCATENATE(C$16,G$3)=Matriz!$J$45,CONCATENATE(Matriz!C45,\" - P4 I2\"),\"\")","v":""},{"$f":"IF(CONCATENATE(C$16,I$3)=Matriz!$J$18,CONCATENATE(Matriz!A18,\" - P4 I3\"),\"\")","v":""},{"$f":"IF(CONCATENATE(C$16,I$3)=Matriz!$J$45,CONCATENATE(Matriz!A45,\" - P4 I3\"),\"\")","v":""},{"$f":"IF(CONCATENATE(C$16,K$3)=Matriz!$J$18,CONCATENATE(Matriz!A18,\" - P4 I4\"),\"\")","v":""},{"$f":"IF(CONCATENATE(C$16,K$3)=Matriz!$J$45,CONCATENATE(Matriz!A45,\" - P4 I4\"),\"\")","v":""},{"$f":"IF(CONCATENATE(C$16,M$3)=Matriz!$J$18,CONCATENATE(Matriz!A18,\" - P4 I5\"),\"\")","v":""},{"$f":"IF(CONCATENATE(C$16,M$3)=Matriz!$J$45,CONCATENATE(Matriz!A45,\" - P4 I5\"),\"\")","v":""}]
[{"$nulls":4},{"$f":"IF(CONCATENATE(C$16,E$3)=Matriz!$J$27,CONCATENATE(Matriz!A27,\" - P4 I1\"),\"\")","v":""},{"$f":"IF(CONCATENATE(C$16,E$3)=Matriz!$J$54,CONCATENATE(Matriz!A54,\" - P4 I1\"),\"\")","v":""},{"$f":"IF(CONCATENATE(C$16,G$3)=Matriz!$J$27,CONCATENATE(Matriz!A27,\" - P4 I2\"),\"\")","v":""},{"$f":"IF(CONCATENATE(C$16,G$3)=Matriz!$J$54,CONCATENATE(Matriz!C54,\" - P4 I2\"),\"\")","v":""},{"$f":"IF(CONCATENATE(C$16,I$3)=Matriz!$J$27,CONCATENATE(Matriz!A27,\" - P4 I3\"),\"\")","v":""},{"$f":"IF(CONCATENATE(C$16,I$3)=Matriz!$J$54,CONCATENATE(Matriz!A54,\" - P4 I3\"),\"\")","v":""},{"$f":"IF(CONCATENATE(C$16,K$3)=Matriz!$J$27,CONCATENATE(Matriz!A27,\" - P4 I4\"),\"\")","v":""},{"$f":"IF(CONCATENATE(C$16,K$3)=Matriz!$J$54,CONCATENATE(Matriz!A54,\" - P4 I4\"),\"\")","v":""},{"$f":"IF(CONCATENATE(C$16,M$3)=Matriz!$J$27,CONCATENATE(Matriz!A27,\" - P4 I5\"),\"\")","v":""},{"$f":"IF(CONCATENATE(C$16,M$3)=Matriz!$J$54,CONCATENATE(Matriz!A54,\" - P4 I5\"),\"\")","v":""}]
[{"$nulls":4},{"$f":"IF(CONCATENATE(C$19,E$3)=Matriz!$J$9,CONCATENATE(Matriz!A$9,\" - P5 I1\"),\"\")","v":""},{"$f":"IF(CONCATENATE($C$19,E$3)=Matriz!$J$36,CONCATENATE(Matriz!A$36,\" - P5 I1\"),\"\")","v":""},{"$f":"IF(CONCATENATE(C$19,G$3)=Matriz!$J$9,CONCATENATE(Matriz!A$9,\" - P5 I2\"),\"\")","v":""},{"$f":"IF(CONCATENATE($C$19,G$3)=Matriz!$J$36,CONCATENATE(Matriz!A$36,\" - P5 I2\"),\"\")","v":""},{"$f":"IF(CONCATENATE(C$19,I$3)=Matriz!$J$9,CONCATENATE(Matriz!A$9,\" - P5 I3\"),\"\")","v":""},{"$f":"IF(CONCATENATE($C$19,I$3)=Matriz!$J$36,CONCATENATE(Matriz!A$36,\" - P5 I3\"),\"\")","v":""},{"$f":"IF(CONCATENATE($C$19,K$3)=Matriz!$J$9,CONCATENATE(Matriz!A$9,\" - P5 I4\"),\"\")","v":""},{"$f":"IF(CONCATENATE($C$19,K$3)=Matriz!$J$36,CONCATENATE(Matriz!A$36,\" - P5 I4\"),\"\")","v":""},{"$f":"IF(CONCATENATE($C$19,M$3)=Matriz!$J$9,CONCATENATE(Matriz!A$9,\" - P5 I5\"),\"\")","v":""},{"$f":"IF(CONCATENATE($C$19,M$3)=Matriz!$J$36,CONCATENATE(Matriz!A$36,\" - P5 I5\"),\"\")","v":""}]
[null,null,5,"CASI SEGURO",{"$f":"IF(CONCATENATE($C$19,E$3)=Matriz!$J$18,CONCATENATE(Matriz!A$18,\" - P5 I1\"),\"\")","v":""},{"$f":"IF(CONCATENATE($C$19,E$3)=Matriz!$J$45,CONCATENATE(Matriz!A$45,\" - P5 I1\"),\"\")","v":""},{"$f":"IF(CONCATENATE($C$19,G$3)=Matriz!$J$18,CONCATENATE(Matriz!A$18,\" - P5 I2\"),\"\")","v":""},{"$f":"IF(CONCATENATE($C$19,G$3)=Matriz!$J$45,CONCATENATE(Matriz!A$45,\" - P5 I2\"),\"\")","v":""},{"$f":"IF(CONCATENATE($C$19,I$3)=Matriz!$J$18,CONCATENATE(Matriz!A$18,\" - P5 I3\"),\"\")","v":""},{"$f":"IF(CONCATENATE($C$19,I$3)=Matriz!$J$45,CONCATENATE(Matriz!A$45,\" - P5 I3\"),\"\")","v":""},{"$f":"IF(CONCATENATE($C$19,K$3)=Matriz!$J$18,CONCATENATE(Matriz!A$18,\" - P5 I4\"),\"\")","v":""},{"$f":"IF(CONCATENATE($C$19,K$3)=Matriz!$J$45,CONCATENATE(Matriz!A$45,\" - P5 I4\"),\"\")","v":""},{"$f":"IF(CONCATENATE($C$19,M$3)=Matriz!$J$18,CONCATENATE(Matriz!A$18,\" - P5 I5\"),\"\")","v":""},{"$f":"IF(CONCATENATE($C$19,M$3)=Matriz!$J$45,CONCATENATE(Matriz!A$45,\" - P5 I5\"),\"\")","v":""}]
[{"$nulls":4},{"$f":"IF(CONCATENATE($C$19,E$3)=Matriz!$J$27,CONCATENATE(Matriz!A$27,\" - P5 I1\"),\"\")","v":""},{"$f":"IF(CONCATENATE($C$19,E$3)=Matriz!$J$54,CONCATENATE(Matriz!A$54,\" - P5 I1\"),\"\")","v":""},{"$f":"IF(CONCATENATE($C$19,G$3)=Matriz!$J$27,CONCATENATE(Matriz!A$27,\" - P5 I2\"),\"\")","v":""},{"$f":"IF(CONCATENATE($C$19,G$3)=Matriz!$J$54,CONCATENATE(Matriz!A$54,\" - P5 I2\"),\"\")","v":""},{"$f":"IF(CONCATENATE($C$19,I$3)=Matriz!$J$27,CONCATENATE(Matriz!A$27,\" - P5 I3\"),\"\")","v":""},{"$f":"IF(CONCATENATE($C$19,I$3)=Matriz!$J$54,CONCATENATE(Matriz!A$54,\" - P5 I3\"),\"\")","v":""},{"$f":"IF(CONCATENATE($C$19,K$3)=Matriz!$J$27,CONCATENATE(Matriz!A$27,\" - P5 I4\"),\"\")","v":""},{"$f":"IF(CONCATENATE($C$19,K$3)=Matriz!$J$54,CONCATENATE(Matriz!A$54,\" - P5 I4\"),\"\")","v":""},{"$f":"IF(CONCATENATE($C$19,M$3)=Matriz!$J$27,CONCATENATE(Matriz!A$27,\" - P5 I5\"),\"\")","v":""},{"$f":"IF(CONCATENATE($C$19,M$3)=Matriz!$J$54,CONCATENATE(Matriz!A$54,\" - P5 I5\"),\"\")","v":""}]
[]
[]
[]
[{"$nulls":16},"MATRIZ DE RIESGO INHERENTE"]
{"$rows_empty":7}
[{"$nulls":17},"Zona de Riesgo Baja"]
[]
[]
[{"$nulls":17},"Zona de Riesgo Moderada"]
[]
[]
[{"$nulls":17},"Zona de Riesgo Alta"]
[]
[]
[{"$nulls":17},"Zona de Riesgo Extrema"]

{"sheet":"Mapa Riesgo Residual","index":4,"n_rows":41,"n_cols":18,"rows_kept":41,"merged":[[1,2,1,13],[2,4,2,5],[2,6,2,7],[2,8,2,9],[2,10,2,11],[2,12,2,13],[3,2,3,3],[3,4,3,5],[3,6,3,7],[3,8,3,9],[3,10,3,11],[3,12,3,13],[4,2,4,3],[5,1,19,1],[23,16,28,19],[31,17,31,19],[34,17,34,19],[37,17,37,19],[40,17,40,19]]}
[]
[null,null,"IMPACTO"]
[{"$nulls":4},1,null,2,null,3,null,4,null,5]
[{"$nulls":4},"INSIGNIFICANTE",null,"MENOR",null,"MODERADO",null,"MAYOR",null,"CATASTRÓFICO"]
[]
[null,"PROBABILIDAD",null,null,{"$f":"IF(CONCATENATE(C$7,E$3)=Matriz!$BE$9,CONCATENATE(Matriz!A9,\" - P1 I1\"),\"\")","v":""},{"$f":"IF(CONCATENATE(C$7,E$3)=Matriz!$BE$36,CONCATENATE(Matriz!A36,\" - P1 I1\"),\"\")","v":""},{"$f":"IF(CONCATENATE(C$7,G$3)=Matriz!$BE$9,CONCATENATE(Matriz!A9,\" - P1 I2\"),\"\")","v":""},{"$f":"IF(CONCATENATE(C$7,G$3)=Matriz!$BE$36,CONCATENATE(Matriz!A36,\" - P1 I2\"),\"\")","v":""},{"$f":"IF(CONCATENATE(C$7,I$3)=Matriz!$BE$9,CONCATENATE(Matriz!A9,\" - P1 I3\"),\"\")","v":"R1 - P1 I3"},{"$f":"IF(CONCATENATE(C$7,I$3)=Matriz!$BE$36,CONCATENATE(Matriz!A36,\" - P1 I3\"),\"\")","v":"R4 - P1 I3"},{"$f":"IF(CONCATENATE(C$7,K$3)=Matriz!$BE$9,CONCATENATE(Matriz!A9,\" - P1 I4\"),\"\")","v":""},{"$f":"IF(CONCATENATE(C$7,K$3)=Matriz!$BE$36,CONCATENATE(Matriz!A36,\" - P1 I4\"),\"\")","v":""},{"$f":"IF(CONCATENATE(C$7,M$3)=Matriz!$BE$9,CONCATENATE(Matriz!A9,\" - P1 I5\"),\"\")","v":""},{"$f":"IF(CONCATENATE(C$7,M$3)=Matriz!$BE$36,CONCATENATE(Matriz!A36,\" - P1 I5\"),\"\")","v":""}]
[null,null,1,"RARO",{"$f":"IF(CONCATENATE(C$7,E$3)=Matriz!$BE$18,CONCATENATE(Matriz!A18,\" - P1 I1\"),\"\")","v":""},{"$f":"IF(CONCATENATE(C$7,E$3)=Matriz!$BE$45,CONCATENATE(Matriz!A45,\" - P1 I1\"),\"\")","v":""},{"$f":"IF(CONCATENATE(C$7,G$3)=Matriz!$BE$18,CONCATENATE(Matriz!A18,\" - P1 I2\"),\"\")","v":""},{"$f":"IF(CONCATENATE(C$7,G$3)=Matriz!$BE$45,CONCATENATE(Matriz!A45,\" - P1 I2\"),\"\")","v":""},{"$f":"IF(CONCATENATE(C$7,I$3)=Matriz!$BE$18,CONCATENATE(Matriz!A18,\" - P1 I3\"),\"\")","v":""},{"$f":"IF(CONCATENATE(C$7,I$3)=Matriz!$BE$45,CONCATENATE(Matriz!A45,\" - P1 I3\"),\"\")","v":""},{"$f":"IF(CONCATENATE(C$7,K$3)=Matriz!$BE$18,CONCATENATE(Matriz!A18,\" - P1 I4\"),\"\")","v":"R2 - P1 I4"},{"$f":"IF(CONCATENATE(C$7,K$3)=Matriz!$BE$45,CONCATENATE(Matriz!A45,\" - P1 I4\"),\"\")","v":""},{"$f":"IF(CONCATENATE(C$7,M$3)=Matriz!$BE$18,CONCATENATE(Matriz!A18,\" - P1 I5\"),\"\")","v":""},{"$f":"IF(CONCATENATE(C$7,M$3)=Matriz!$BE$45,CONCATENATE(Matriz!A45,\" - P1 I5\"),\"\")","v":""}]
[{"$nulls":4},{"$f":"IF(CONCATENATE(C$7,E$3)=Matriz!$BE$27,CONCATENATE(Matriz!A27,\" - P1 I1\"),\"\")","v":""},{"$f":"IF(CONCATENATE(C$7,E$3)=Matriz!$BE$54,CONCATENATE(Matriz!A54,\" - P1 I1\"),\"\")","v":""},{"$f":"IF(CONCATENATE(C$7,G$3)=Matriz!$BE$27,CONCATENATE(Matriz!A27,\" - P1 I2\"),\"\")","v":""},{"$f":"IF(CONCATENATE(C$7,G$3)=Matriz!$BE$54,CONCATENATE(Matriz!A54,\" - P1 I2\"),\"\")","v":""},{"$f":"IF(CONCATENATE(C$7,I$3)=Matriz!$BE$27,CONCATENATE(Matriz!A27,\" - P1 I3\"),\"\")","v":""},{"$f":"IF(CONCATENATE(C$7,I$3)=Matriz!$BE$54,CONCATENATE(Matriz!A54,\" - P1 I3\"),\"\")","v":""},{"$f":"IF(CONCATENATE(C$7,K$3)=Matriz!$BE$27,CONCATENATE(Matriz!A27,\" - P1 I4\"),\"\")","v":"R3 - P1 I4"},{"$f":"IF(CONCATENATE(C$7,K$3)=Matriz!$BE$54,CONCATENATE(Matriz!A54,\" - P1 I4\"),\"\")","v":""},{"$f":"IF(CONCATENATE(C$7,M$3)=Matriz!$BE$27,CONCATENATE(Matriz!A27,\" - P1 I5\"),\"\")","v":""},{"$f":"IF(CONCATENATE(C$7,M$3)=Matriz!$BE$54,CONCATENATE(Matriz!A54,\" - P1 I5\"),\"\")","v":""}]
[{"$nulls":4},{"$f":"IF(CONCATENATE(C$10,E$3)=Matriz!$BE$9,CONCATENATE(Matriz!A9,\" - P2 I1\"),\"\")","v":""},{"$f":"IF(CONCATENATE(C$10,E$3)=Matriz!$BE$36,CONCATENATE(Matriz!A36,\" - P2 I1\"),\"\")","v":""},{"$f":"IF(CONCATENATE(C$10,G$3)=Matriz!$BE$9,CONCATENATE(Matriz!A9,\" - P2 I2\"),\"\")","v":""},{"$f":"IF(CONCATENATE(C$10,G$3)=Matriz!$BE$36,CONCATENATE(Matriz!A36,\" - P2 I2\"),\"\")","v":""},{"$f":"IF(CONCATENATE(C$10,I$3)=Matriz!$BE$9,CONCATENATE(Matriz!A9,\" - P2 I3\"),\"\")","v":""},{"$f":"IF(CONCATENATE(C$10,I$3)=Matriz!$BE$36,CONCATENATE(Matriz!A36,\" - P2 I3\"),\"\")","v":""},{"$f":"IF(CONCATENATE(C$10,K$3)=Matriz!$BE$9,CONCATENATE(Matriz!A9,\" - P2 I4\"),\"\")","v":""},{"$f":"IF(CONCATENATE(C$10,K$3)=Matriz!$BE$36,CONCATENATE(Matriz!A36,\" - P2 I4\"),\"\")","v":""},{"$f":"IF(CONCATENATE(C$10,M$3)=Matriz!$BE$9,CONCATENATE(Matriz!A9,\" - P2 I5\"),\"\")","v":""},{"$f":"IF(CONCATENATE(C$10,M$3)=Matriz!$BE$36,CONCATENATE(Matriz!A36,\" - P2 I5\"),\"\")","v":""}]
[null,null,2,"IMPROBABLE",{"$f":"IF(CONCATENATE(C$10,E$3)=Matriz!$BE$18,CONCATENATE(Matriz!A18,\" - P2 I1\"),\"\")","v":""},{"$f":"IF(CONCATENATE(C$10,E$3)=Matriz!$BE$45,CONCATENATE(Matriz!A45,\" - P2 I1\"),\"\")","v":""},{"$f":"IF(CONCATENATE(C$10,G$3)=Matriz!$BE$18,CONCATENATE(Matriz!A18,\" - P2 I2\"),\"\")","v":""},{"$f":"IF(CONCATENATE(C$10,G$3)=Matriz!$BE$45,CONCATENATE(Matriz!A45,\" - P2 I2\"),\"\")","v":""},{"$f":"IF(CONCATENATE(C$10,I$3)=Matriz!$BE$18,CONCATENATE(Matriz!A18,\" - P2 I3\"),\"\")","v":""},{"$f":"IF(CONCATENATE(C$10,I$3)=Matriz!$BE$45,CONCATENATE(Matriz!A45,\" - P2 I3\"),\"\")","v":""},{"$f":"IF(CONCATENATE(C$10,K$3)=Matriz!$BE$18,CONCATENATE(Matriz!A18,\" - P2 I4\"),\"\")","v":""},{"$f":"IF(CONCATENATE(C$10,K$3)=Matriz!$BE$45,CONCATENATE(Matriz!A45,\" - P2 I4\"),\"\")","v":""},{"$f":"IF(CONCATENATE(C$10,M$3)=Matriz!$BE$18,CONCATENATE(Matriz!A18,\" - P2 I5\"),\"\")","v":""},{"$f":"IF(CONCATENATE(C$10,M$3)=Matriz!$BE$45,CONCATENATE(Matriz!A45,\" - P2 I5\"),\"\")","v":""}]
[{"$nulls":4},{"$f":"IF(CONCATENATE(C$10,E$3)=Matriz!$BE$27,CONCATENATE(Matriz!A27,\" - P2 I1\"),\"\")","v":""},{"$f":"IF(CONCATENATE(C$10,E$3)=Matriz!$BE$54,CONCATENATE(Matriz!A54,\" - P2 I1\"),\"\")","v":""},{"$f":"IF(CONCATENATE(C$10,G$3)=Matriz!$BE$27,CONCATENATE(Matriz!A27,\" - P2 I2\"),\"\")","v":""},{"$f":"IF(CONCATENATE(C$10,G$3)=Matriz!$BE$54,CONCATENATE(Matriz!A54,\" - P2 I2\"),\"\")","v":""},{"$f":"IF(CONCATENATE(C$10,I$3)=Matriz!$BE$27,CONCATENATE(Matriz!A27,\" - P2 I3\"),\"\")","v":""},{"$f":"IF(CONCATENATE(C$10,I$3)=Matriz!$BE$54,CONCATENATE(Matriz!A54,\" - P2 I3\"),\"\")","v":""},{"$f":"IF(CONCATENATE(C$10,K$3)=Matriz!$BE$27,CONCATENATE(Matriz!A27,\" - P2 I4\"),\"\")","v":""},{"$f":"IF(CONCATENATE(C$10,K$3)=Matriz!$BE$54,CONCATENATE(Matriz!A54,\" - P2 I4\"),\"\")","v":""},{"$f":"IF(CONCATENATE(C$10,M$3)=Matriz!$BE$27,CONCATENATE(Matriz!A27,\" - P2 I5\"),\"\")","v":""},{"$f":"IF(CONCATENATE(C$10,M$3)=Matriz!$BE$54,CONCATENATE(Matriz!A54,\" - P2 I5\"),\"\")","v":""}]
[{"$nulls":4},{"$f":"IF(CONCATENATE(C$13,E$3)=Matriz!$BE$9,CONCATENATE(Matriz!A9,\" - P3 I1\"),\"\")","v":""},{"$f":"IF(CONCATENATE(C$13,E$3)=Matriz!$BE$36,CONCATENATE(Matriz!A36,\" - P3 I1\"),\"\")","v":""},{"$f":"IF(CONCATENATE(C$13,G$3)=Matriz!$BE$9,CONCATENATE(Matriz!A9,\" - P3 I2\"),\"\")","v":""},{"$f":"IF(CONCATENATE(C$13,G$3)=Matriz!$BE$36,CONCATENATE(Matriz!A36,\" - P3 I2\"),\"\")","v":""},{"$f":"IF(CONCATENATE(C$13,I$3)=Matriz!$BE$9,CONCATENATE(Matriz!A9,\" - P3 I3\"),\"\")","v":""},{"$f":"IF(CONCATENATE(C$13,I$3)=Matriz!$BE$36,CONCATENATE(Matriz!A36,\" - P3 I3\"),\"\")","v":""},{"$f":"IF(CONCATENATE(C$13,K$3)=Matriz!$BE$9,CONCATENATE(Matriz!A9,\" - P3 I4\"),\"\")","v":""},{"$f":"IF(CONCATENATE(C$13,K$3)=Matriz!$BE$36,CONCATENATE(Matriz!A36,\" - P3 I4\"),\"\")","v":""},{"$f":"IF(CONCATENATE(C$13,M$3)=Matriz!$BE$9,CONCATENATE(Matriz!A9,\" - P3 I5\"),\"\")","v":""},{"$f":"IF(CONCATENATE(C$13,M$3)=Matriz!$BE$36,CONCATENATE(Matriz!A36,\" - P3 I5\"),\"\")","v":""}]
[null,null,3,"MODERADO",{"$f":"IF(CONCATENATE(C$13,E$3)=Matriz!$BE$18,CONCATENATE(Matriz!A18,\" - P3 I1\"),\"\")","v":""},{"$f":"IF(CONCATENATE(C$13,E$3)=Matriz!$BE$45,CONCATENATE(Matriz!A45,\" - P3 I1\"),\"\")","v":""},{"$f":"IF(CONCATENATE(C$13,G$3)=Matriz!$BE$18,CONCATENATE(Matriz!A18,\" - P3 I2\"),\"\")","v":""},{"$f":"IF(CONCATENATE(C$13,G$3)=Matriz!$BE$45,CONCATENATE(Matriz!A45,\" - P3 I2\"),\"\")","v":""},{"$f":"IF(CONCATENATE(C$13,I$3)=Matriz!$BE$18,CONCATENATE(Matriz!A18,\" - P3 I3\"),\"\")","v":""},{"$f":"IF(CONCATENATE(C$13,I$3)=Matriz!$BE$45,CONCATENATE(Matriz!A45,\" - P3 I3\"),\"\")","v":""},{"$f":"IF(CONCATENATE(C$13,K$3)=Matriz!$BE$18,CONCATENATE(Matriz!A18,\" - P3 I4\"),\"\")","v":""},{"$f":"IF(CONCATENATE(C$13,K$3)=Matriz!$BE$45,CONCATENATE(Matriz!A45,\" - P3 I4\"),\"\")","v":""},{"$f":"IF(CONCATENATE(C$13,M$3)=Matriz!$BE$18,CONCATENATE(Matriz!A18,\" - P3 I5\"),\"\")","v":""},{"$f":"IF(CONCATENATE(C$13,M$3)=Matriz!$BE$45,CONCATENATE(Matriz!A45,\" - P3 I5\"),\"\")","v":""}]
[{"$nulls":4},{"$f":"IF(CONCATENATE(C$13,E$3)=Matriz!$BE$27,CONCATENATE(Matriz!A27,\" - P3 I1\"),\"\")","v":""},{"$f":"IF(CONCATENATE(C$13,E$3)=Matriz!$BE$54,CONCATENATE(Matriz!A54,\" - P3 I1\"),\"\")","v":""},{"$f":"IF(CONCATENATE(C$13,G$3)=Matriz!$BE$27,CONCATENATE(Matriz!A27,\" - P3 I2\"),\"\")","v":""},{"$f":"IF(CONCATENATE(C$13,G$3)=Matriz!$BE$54,CONCATENATE(Matriz!A54,\" - P3 I2\"),\"\")","v":""},{"$f":"IF(CONCATENATE(C$13,I$3)=Matriz!$BE$27,CONCATENATE(Matriz!A27,\" - P3 I3\"),\"\")","v":""},{"$f":"IF(CONCATENATE(C$13,I$3)=Matriz!$BE$54,CONCATENATE(Matriz!A54,\" - P3 I3\"),\"\")","v":""},{"$f":"IF(CONCATENATE(C$13,K$3)=Matriz!$BE$27,CONCATENATE(Matriz!A27,\" - P3 I4\"),\"\")","v":""},{"$f":"IF(CONCATENATE(C$13,K$3)=Matriz!$BE$54,CONCATENATE(Matriz!A54,\" - P3 I4\"),\"\")","v":""},{"$f":"IF(CONCATENATE(C$13,M$3)=Matriz!$BE$27,CONCATENATE(Matriz!A27,\" - P3 I5\"),\"\")","v":""},{"$f":"IF(CONCATENATE(C$13,M$3)=Matriz!$BE$54,CONCATENATE(Matriz!A54,\" - P3 I5\"),\"\")","v":""}]
[{"$nulls":4},{"$f":"IF(CONCATENATE(C$16,E$3)=Matriz!$BE$9,CONCATENATE(Matriz!A9,\" - P4 I1\"),\"\")","v":""},{"$f":"IF(CONCATENATE(C$16,E$3)=Matriz!$BE$36,CONCATENATE(Matriz!A36,\" - P4 I1\"),\"\")","v":""},{"$f":"IF(CONCATENATE(C$16,G$3)=Matriz!$BE$9,CONCATENATE(Matriz!A9,\" - P4 I2\"),\"\")","v":""},{"$f":"IF(CONCATENATE(C$16,G$3)=Matriz!$BE$36,CONCATENATE(Matriz!C36,\" - P4 I2\"),\"\")","v":""},{"$f":"IF(CONCATENATE(C$16,I$3)=Matriz!$BE$9,CONCATENATE(Matriz!A9,\" - P4 I3\"),\"\")","v":""},{"$f":"IF(CONCATENATE(C$16,I$3)=Matriz!$BE$36,CONCATENATE(Matriz!A36,\" - P4 I3\"),\"\")","v":""},{"$f":"IF(CONCATENATE(C$16,K$3)=Matriz!$BE$9,CONCATENATE(Matriz!A9,\" - P4 I4\"),\"\")","v":""},{"$f":"IF(CONCATENATE(C$16,K$3)=Matriz!$BE$36,CONCATENATE(Matriz!A36,\" - P4 I4\"),\"\")","v":""},{"$f":"IF(CONCATENATE(C$16,M$3)=Matriz!$BE$9,CONCATENATE(Matriz!A9,\" - P4 I5\"),\"\")","v":""},{"$f":"IF(CONCATENATE(C$16,M$3)=Matriz!$BE$36,CONCATENATE(Matriz!A36,\" - P4 I5\"),\"\")","v":""}]
[null,null,4,"PROBABLE",{"$f":"IF(CONCATENATE(C$16,E$3)=Matriz!$BE$18,CONCATENATE(Matriz!A18,\" - P4 I1\"),\"\")","v":""},{"$f":"IF(CONCATENATE(C$16,E$3)=Matriz!$BE$45,CONCATENATE(Matriz!A45,\" - P4 I1\"),\"\")","v":""},{"$f":"IF(CONCATENATE(C$16,G$3)=Matriz!$BE$18,CONCATENATE(Matriz!A18,\" - P4 I2\"),\"\")","v":""},{"$f":"IF(CONCATENATE(C$16,G$3)=Matriz!$BE$45,CONCATENATE(Matriz!C45,\" - P4 I2\"),\"\")","v":""},{"$f":"IF(CONCATENATE(C$16,I$3)=Matriz!$BE$18,CONCATENATE(Matriz!A18,\" - P4 I3\"),\"\")","v":""},{"$f":"IF(CONCATENATE(C$16,I$3)=Matriz!$BE$45,CONCATENATE(Matriz!A45,\" - P4 I3\"),\"\")","v":""},{"$f":"IF(CONCATENATE(C$16,K$3)=Matriz!$BE$18,CONCATENATE(Matriz!A18,\" - P4 I4\"),\"\")","v":""},{"$f":"IF(CONCATENATE(C$16,K$3)=Matriz!$BE$45,CONCATENATE(Matriz!A45,\" - P4 I4\"),\"\")","v":""},{"$f":"IF(CONCATENATE(C$16,M$3)=Matriz!$BE$18,CONCATENATE(Matriz!A18,\" - P4 I5\"),\"\")","v":""},{"$f":"IF(CONCATENATE(C$16,M$3)=Matriz!$BE$45,CONCATENATE(Matriz!A45,\" - P4 I5\"),\"\")","v":""}]
[{"$nulls":4},{"$f":"IF(CONCATENATE(C$16,E$3)=Matriz!$BE$27,CONCATENATE(Matriz!A27,\" - P4 I1\"),\"\")","v":""},{"$f":"IF(CONCATENATE(C$16,E$3)=Matriz!$BE$54,CONCATENATE(Matriz!A54,\" - P4 I1\"),\"\")","v":""},{"$f":"IF(CONCATENATE(C$16,G$3)=Matriz!$J$27,CONCATENATE(Matriz!A27,\" - P4 I2\"),\"\")","v":""},{"$f":"IF(CONCATENATE(C$16,G$3)=Matriz!$BE$54,CONCATENATE(Matriz!C54,\" - P4 I2\"),\"\")","v":""},{"$f":"IF(CONCATENATE(C$16,I$3)=Matriz!$BE$27,CONCATENATE(Matriz!A27,\" - P4 I3\"),\"\")","v":""},{"$f":"IF(CONCATENATE(C$16,I$3)=Matriz!$BE$54,CONCATENATE(Matriz!A54,\" - P4 I3\"),\"\")","v":""},{"$f":"IF(CONCATENATE(C$16,K$3)=Matriz!$BE$27,CONCATENATE(Matriz!A27,\" - P4 I4\"),\"\")","v":""},{"$f":"IF(CONCATENATE(C$16,K$3)=Matriz!$BE$54,CONCATENATE(Matriz!A54,\" - P4 I4\"),\"\")","v":""},{"$f":"IF(CONCATENATE(C$16,M$3)=Matriz!$BE$27,CONCATENATE(Matriz!A27,\" - P4 I5\"),\"\")","v":""},{"$f":"IF(CONCATENATE(C$16,M$3)=Matriz!$BE$54,CONCATENATE(Matriz!A54,\" - P4 I5\"),\"\")","v":""}]
[{"$nulls":4},{"$f":"IF(CONCATENATE(C$19,E$3)=Matriz!$BE$9,CONCATENATE(Matriz!A$9,\" - P5 I1\"),\"\")","v":""},{"$f":"IF(CONCATENATE($C$19,E$3)=Matriz!$BE$36,CONCATENATE(Matriz!A$36,\" - P5 I1\"),\"\")","v":""},{"$f":"IF(CONCATENATE(C$19,G$3)=Matriz!$BE$9,CONCATENATE(Matriz!A$9,\" - P5 I2\"),\"\")","v":""},{"$f":"IF(CONCATENATE($C$19,G$3)=Matriz!$BE$36,CONCATENATE(Matriz!A$36,\" - P5 I2\"),\"\")","v":""},{"$f":"IF(CONCATENATE(C$19,I$3)=Matriz!$BE$9,CONCATENATE(Matriz!A$9,\" - P5 I3\"),\"\")","v":""},{"$f":"IF(CONCATENATE($C$19,I$3)=Matriz!$BE$36,CONCATENATE(Matriz!A$36,\" - P5 I3\"),\"\")","v":""},{"$f":"IF(CONCATENATE($C$19,K$3)=Matriz!$BE$9,CONCATENATE(Matriz!A$9,\" - P5 I4\"),\"\")","v":""},{"$f":"IF(CONCATENATE($C$19,K$3)=Matriz!$BE$36,CONCATENATE(Matriz!A$36,\" - P5 I4\"),\"\")","v":""},{"$f":"IF(CONCATENATE($C$19,M$3)=Matriz!$BE$9,CONCATENATE(Matriz!A$9,\" - P5 I5\"),\"\")","v":""},{"$f":"IF(CONCATENATE($C$19,M$3)=Matriz!$BE$36,CONCATENATE(Matriz!A$36,\" - P5 I5\"),\"\")","v":""}]
[null,null,5,"CASI SEGURO",{"$f":"IF(CONCATENATE($C$19,E$3)=Matriz!$BE$18,CONCATENATE(Matriz!A$18,\" - P5 I1\"),\"\")","v":""},{"$f":"IF(CONCATENATE($C$19,E$3)=Matriz!$BE$45,CONCATENATE(Matriz!A$45,\" - P5 I1\"),\"\")","v":""},{"$f":"IF(CONCATENATE($C$19,G$3)=Matriz!$BE$18,CONCATENATE(Matriz!A$18,\" - P5 I2\"),\"\")","v":""},{"$f":"IF(CONCATENATE($C$19,G$3)=Matriz!$BE$45,CONCATENATE(Matriz!A$45,\" - P5 I2\"),\"\")","v":""},{"$f":"IF(CONCATENATE($C$19,I$3)=Matriz!$BE$18,CONCATENATE(Matriz!A$18,\" - P5 I3\"),\"\")","v":""},{"$f":"IF(CONCATENATE($C$19,I$3)=Matriz!$BE$45,CONCATENATE(Matriz!A$45,\" - P5 I3\"),\"\")","v":""},{"$f":"IF(CONCATENATE($C$19,K$3)=Matriz!$BE$18,CONCATENATE(Matriz!A$18,\" - P5 I4\"),\"\")","v":""},{"$f":"IF(CONCATENATE($C$19,K$3)=Matriz!$BE$45,CONCATENATE(Matriz!A$45,\" - P5 I4\"),\"\")","v":""},{"$f":"IF(CONCATENATE($C$19,M$3)=Matriz!$BE$18,CONCATENATE(Matriz!A$18,\" - P5 I5\"),\"\")","v":""},{"$f":"IF(CONCATENATE($C$19,M$3)=Matriz!$BE$45,CONCATENATE(Matriz!A$45,\" - P5 I5\"),\"\")","v":""}]
[{"$nulls":4},{"$f":"IF(CONCATENATE($C$19,E$3)=Matriz!$BE$27,CONCATENATE(Matriz!A$27,\" - P5 I1\"),\"\")","v":""},{"$f":"IF(CONCATENATE($C$19,E$3)=Matriz!$BE$54,CONCATENATE(Matriz!A$54,\" - P5 I1\"),\"\")","v":""},{"$f":"IF(CONCATENATE($C$19,G$3)=Matriz!$BE$27,CONCATENATE(Matriz!A$27,\" - P5 I2\"),\"\")","v":""},{"$f":"IF(CONCATENATE($C$19,G$3)=Matriz!$BE$54,CONCATENATE(Matriz!A$54,\" - P5 I2\"),\"\")","v":""},{"$f":"IF(CONCATENATE($C$19,I$3)=Matriz!$BE$27,CONCATENATE(Matriz!A$27,\" - P5 I3\"),\"\")","v":""},{"$f":"IF(CONCATENATE($C$19,I$3)=Matriz!$BE$54,CONCATENATE(Matriz!A$54,\" - P5 I3\"),\"\")","v":""},{"$f":"IF(CONCATENATE($C$19,K$3)=Matriz!$BE$27,CONCATENATE(Matriz!A$27,\" - P5 I4\"),\"\")","v":""},{"$f":"IF(CONCATENATE($C$19,K$3)=Matriz!$BE$54,CONCATENATE(Matriz!A$54,\" - P5 I4\"),\"\")","v":""},{"$f":"IF(CONCATENATE($C$19,M$3)=Matriz!$BE$27,CONCATENATE(Matriz!A$27,\" - P5 I5\"),\"\")","v":""},{"$f":"IF(CONCATENATE($C$19,M$3)=Matriz!$BE$54,CONCATENATE(Matriz!A$54,\" - P5 I5\"),\"\")","v":""}]
[]
[]
[]
[{"$nulls":16},"MATRIZ DE RIESGO INHERENTE"]
{"$rows_empty":7}
[{"$nulls":17},"Zona de Riesgo Baja"]
[]
[]
[{"$nulls":17},"Zona de Riesgo Moderada"]
[]
[]
[{"$nulls":17},"Zona de Riesgo Alta"]
[]
[]
[{"$nulls":17},"Zona de Riesgo Extrema"]